Workbook

Sheet READ ME

Sheet SBTM
A1: SBTM - calculate transport rate and transport grain size from
B2: specified shear velocity and bed surface grain size
A3: RULES, CONVENTIONS, AND UNITS
A4: 1. Cells for input data are highlighted in GREEN, cells for output data are ORANGE
A5: 2. Grain-diameters must be in millimeters (mm)
A6: 3. Cumulative percentiles, not fractions, are used
A7: 4. Cumulative grain-size distribution percentiles must span from 0 to 100 %
A8: 5. Shear velocity must be in meters-per-second (m/s)
A9: 6. The 0 and 100 % must be EXACTLY 0 and 100
A10: INSTRUCTIONS
A11: 1. In table below, enter grain size and cumulative % in order of decreasing grain size
A12: 2. Enter your bed shear velocity
A13: 3. Check input for errors, press Enter, and then click once on the Run SBTM button
A15: Parameter | B15: Value | C15: Description | D15: Units
A16: u* | B16: 0.2 | C16: Bed shear velocity | D16: m/s | J16: This worksheet calculates transport rates per unit width in units of m2/s
A17: qT | B17: 0.0006686656395 | C17: Total transport rate | D17: m2/s | J17: (m3 of solid sediment per m of channel width per s = m2/s)
J18: as a function of shear velocity in units of m/s. Here are some convenient unit conversions.
A19: D (mm) | B19: Surface CDF GSD (% Finer) | C19: Transport CDF GSD (% Finer) | E19: Statistic | F19: Surface GSD | G19: Transport GSD | H19: Units | J19: Handy Conversion Table | N19: Input
A20: 64 | B20: 100 | C20: 100 | D20: 100 | E20: Dmin | F20: 0.1767766953 | G20: 0.1767766953 | H20: mm | J20: From | M20: To | N20: Output
A21: 45.25 | B21: 77.30849433 | C21: 89.55500637 | D21: 98.98748325 | E21: Dmax | F21: 64 | G21: 64 | H21: mm | L21: Shear Stress | M21: Shear Velocity | N21: 1000 | O21: kg/m3 | P21: Water density r (typical = 1000)
A22: 32 | B22: 57.01169907 | C22: 74.03594309 | D22: 96.88376148 | E22: D50 | F22: 28.31210648 | G22: 20.92611161 | H22: mm | L22: (Pa) | M22: (m/s) | N22: 2650 | O22: kg/m3 | P22: Sediment density rs (typical = quartz = 2650)
A23: 22.63 | B23: 37.17224784 | C23: 53.95549049 | D23: 93.13433917 | E23: Dg | F23: 19.59399214 | G23: 11.67538254 | H23: mm | L23: 49.05 | M23: =SQRT(L23/N21) -> 0.2214723459
A24: 16 | B24: 22.3582094 | C24: 36.43706371 | D24: 89.82448445 | E24: sg | F24: 1.818957842 | G24: 2.221225538 | H24: f/y-units | K24: Depth | L24: Slope | M24: Shear Velocity
A25: 11.31 | B25: 16.15183884 | C25: 28.36616118 | D25: 84.85089843 | E25: Fs | F25: 9.48109339 | G25: 18.56687154 | H25: % | K25: (m) | M25: (m/s)
A26: 8 | B26: 13.40783232 | C26: 24.55276234 | D26: 79.4277095 | K26: 0.5 | L26: 0.01 | M26: =SQRT(9.81*K26*L26) -> 0.2214723459
A27: 5.66 | B27: 11.41694635 | C27: 21.63565916 | D27: 72.02702948 | K27: Depth | L27: Slope | M27: Shear Velocity
A28: 4 | B28: 10.50345869 | C28: 20.23330839 | D28: 66.27353038 | K28: (ft) | M28: (m/s)
A29: 2.83 | B29: 9.871187142 | C29: 19.21939005 | D29: 53.04536011 | K29: 1.64 | L29: 0.01 | M29: =SQRT(9.81*K29*0.3048*L29) -> 0.2214439956
A30: 2 | B30: 9.48109339 | C30: 18.56687154 | D30: 34.56699372 | L30: Transport Rate | M30: Unit Transport Rate
A31: 1.4 | B31: 8.758803882 | C31: 17.30674267 | D31: 27.06701682 | L31: (kg/m/s) | M31: (m2/s)
A32: 1 | B32: 7.58601108 | C32: 15.17507581 | D32: 23.2789341 | L32: 1 | M32: =L32/N22 -> 0.0003773584906 | N32: For bed-material load in kg/m/s, 0.2 is respectable, 1.0 is a big number, 5 is getting really big
A33: 0.707 | B33: 5.405334917 | C33: 11.04987345 | D33: 20.72385744 | K33: Transport Rate | L33: Channel Width | M33: Unit Transport Rate
A34: 0.5 | B34: 3.088451708 | C34: 6.487815436 | D34: 0 | K34: (kg/hr) | L34: (m) | M34: (m2/s)
A35: 0.35 | B35: 1.472788806 | C35: 3.176420386 | K35: 10 | L35: 10 | M35: =K35/N22/3600/L35 -> 1.048218029e-07
A36: 0.25 | B36: 0.4689357964 | C36: 1.037452136 | K36: Transport Rate | L36: Channel Width | M36: Unit Transport Rate
A37: 0.1767766953 | B37: 0 | C37: 0 | K37: (tons/day) | L37: (ft) | M37: (m2/s)
K38: 10 | L38: 10 | M38: =K38*2000/2.2/N22/L38/0.3048/24/3600 -> 1.302664973e-05 | N38: where ton = 2000 lb or 909 kg of sediment
J39: Transport Rate | K39: Water Discharge | L39: Channel Width | M39: Unit Transport Rate
J40: (mg/L) | K40: (m3/s) | L40: (m) | M40: (m2/s)
J41: 1000 | K41: 5 | L41: 10 | M41: =J41*K41/L41/1000/1000/2650*1000 -> 0.0001886792453

Sheet iSBTM
A1: iSBTM - calculate bed surface grain size and bed shear velocity from
B2: specified transport rate and transport grain size
A3: RULES, CONVENTIONS, AND UNITS
A4: 1. Cells for input data are highlighted in GREEN, cells for output data are ORANGE
A5: 2. Grain-diameters must be in millimeters (mm)
A6: 3. Cumulative percentiles, not fractions, are used
A7: 4. Cumulative grain-size distribution percentiles must span from 0 to 100 %
A8: 5. Total transport rate must be in square-meters-per-second (m2/s)
A9: 6. The 0 and 100 % must be EXACTLY 0 and 100
A10: INSTRUCTIONS
A11: 1. In table below, enter grain size and cumulative % in order of decreasing grain size
A12: 2. Enter your total transport rate
A13: 3. Check input for errors, press Enter, and then click once on the Run iSBTM button
A15: Parameter | B15: Value | C15: Description | D15: Units
A16: u* | B16: 0.2 | C16: Bed shear velocity | D16: m/s | J16: This worksheet calculates shear velocity in units of m/s
A17: qT | B17: 0.0006686656395 | C17: Total transport rate | D17: m2/s | J17: as a function of transport rates per unit width in units of m2/s
J18: (m3 of solid sediment per m of channel width per s = m2/s)
A19: D (mm) | B19: Surface CDF GSD (% Finer) | C19: Transport CDF GSD (% Finer) | E19: Statistic | F19: Surface GSD | G19: Transport GSD | H19: Units | J19: Here are some convenient unit conversions.
A20: 64 | B20: 100 | C20: 100 | E20: Dmin | F20: 0.1767766953 | G20: 0.1767766953 | H20: mm | J20: Handy Conversion Table | N20: Input
A21: 45.25 | B21: 77.30849405 | C21: 89.55500637 | E21: Dmax | F21: 64 | G21: 64 | H21: mm | J21: From | M21: To | N21: Output
A22: 32 | B22: 57.01169874 | C22: 74.03594309 | E22: D50 | F22: 28.31210663 | G22: 20.92611161 | H22: mm | L22: Shear Stress | M22: Shear Velocity | N22: 1000
A23: 22.63 | B23: 37.17224758 | C23: 53.95549049 | E23: Dg | F23: 19.59399225 | G23: 11.67538254 | H23: mm | L23: (Pa) | M23: (m/s) | N23: 2650
A24: 16 | B24: 22.35820924 | C24: 36.43706371 | E24: sg | F24: 1.81895784 | G24: 2.221225538 | H24: f/y-units | L24: 49.05 | M24: =SQRT(L24/N22) -> 0.2214723459
A25: 11.31 | B25: 16.15183873 | C25: 28.36616118 | E25: Fs | F25: 9.481093336 | G25: 18.56687154 | H25: % | K25: Depth | L25: Slope | M25: Shear Velocity
A26: 8 | B26: 13.40783223 | C26: 24.55276234 | E26: Armor Ratio (D50surf / D50transport) | F26: =F22/G22 -> 1.352955922 | K26: (m) | M26: (m/s)
A27: 5.66 | B27: 11.41694628 | C27: 21.63565916 | E27: Convergence Stuff | F27: Value | G27: Units | K27: 0.5 | L27: 0.01 | M27: =SQRT(9.81*K27*L27) -> 0.2214723459
A28: 4 | B28: 10.50345862 | C28: 20.23330839 | E28: Maximum allowed iterations | F28: 200 | G28: # | K28: Depth | L28: Slope | M28: Shear Velocity
A29: 2.83 | B29: 9.871187086 | C29: 19.21939005 | E29: Number of iterations | F29: 11 | G29: # | K29: (ft) | M29: (m/s)
A30: 2 | B30: 9.481093336 | C30: 18.56687154 | E30: Convergence tolerance | F30: 5e-05 | G30: % | K30: 1.64 | L30: 0.01 | M30: =SQRT(9.81*K30*0.3048*L30) -> 0.2214439956
A31: 1.4 | B31: 8.758803833 | C31: 17.30674267 | E31: Relative difference in surface Dg at convergence | F31: 5.026175458e-07 | G31: % | L31: Transport Rate | M31: Unit Transport Rate
A32: 1 | B32: 7.586011039 | C32: 15.17507581 | E32: Max abs error for any fraction at convergence | F32: 1.189951229e-05 | G32: % | L32: (kg/m/s) | M32: (m2/s)
A33: 0.707 | B33: 5.405334889 | C33: 11.04987345 | E33: Max abs error surface sand fraction at convergence | F33: 2.989608561e-12 | G33: % | L33: 1 | M33: =L33/N23 -> 0.0003773584906 | N33: For bed-material load in kg/m/s, 0.2 is respectable, 1.0 is a big number, 5 is getting really big
A34: 0.5 | B34: 3.088451692 | C34: 6.487815436 | E34: Relative difference in u* at convergence | F34: 5.026175458e-07 | G34: % | K34: Transport Rate | L34: Channel Width | M34: Unit Transport Rate
A35: 0.35 | B35: 1.472788799 | C35: 3.176420386 | E35: Relative difference in qT at convergence | F35: 5.637333189e-07 | G35: % | K35: (kg/hr) | L35: (m) | M35: (m2/s)
A36: 0.25 | B36: 0.4689357943 | C36: 1.037452136 | K36: 10 | L36: 10 | M36: =K36/N23/3600/L36 -> 1.048218029e-07
A37: 0.1767766953 | B37: 0 | C37: 0 | E37: Issue | F37: Warnings | K37: Transport Rate | L37: Channel Width | M37: Unit Transport Rate
E38: Singular Jacobian matrix | F38: No problems | K38: (tons/day) | L38: (ft) | M38: (m2/s)
E39: Convergence | F39: Convergence attained, have a nice day | K39: 10 | L39: 10 | M39: =K39*2000/2.2/N23/L39/0.3048/24/3600 -> 1.302664973e-05 | N39: where ton = 2000 lb or 909 kg of sediment
J40: Transport Rate | K40: Water Discharge | L40: Channel Width | M40: Unit Transport Rate
J41: (mg/L) | K41: (m3/s) | L41: (m) | M41: (m2/s)
J42: 1000 | K42: 5 | L42: 10 | M42: =J42*K42/L42/1000/1000/2650*1000 -> 0.0001886792453

Sheet STAB
A1: CHANNEL STABILITY DIAGRAM FOR GRAVEL-BED RIVERS - INPUT WORKSHEET | F1: For the input entered below, here are max and min values of
A2: RULES, CONVENTIONS, AND UNITS | G2: water discharge per unit width | J2: This worksheet uses as input water discharge in m3/s
A3: 1. Cells for input data are highlighted in GREEN | F3: Maximum q | G3: Minimum q | J3: and transport rates in units of m3/s (m3 of solid sediment per s)
A4: 2. Grain-diameters must be in millimeters (mm) | F4: =B16/B20 -> 4 | G4: =B16/B21 -> 0.6666666667 | H4: Case 1 | J4: Here are some convenient unit conversions.
A5: 3. Cumulative percentiles, not fractions, are used | F5: =B18/B20 -> 7 | G5: =B18/B21 -> 1.166666667 | H5: Case 2 | J5: Handy Conversion Table | M5: Input
A6: 4. Cumulative grain-size distribution percentiles must span from 0 to 100 % | J6: From | L6: To | M6: Output
A7: 5. The 0 and 100 % must be EXACTLY 0 and 100 | F7: For the input entered below, here are max and min values of | K7: Water Discharge | L7: Water Discharge | M7: 1000 | N7: kg/m3 | O7: Water density r (typical = 1000)
A8: INSTRUCTIONS | G8: sediment transport rate per unit width | K8: (ft3/s) | L8: (m3/s) | M8: 2650 | N8: kg/m3 | O8: Sediment density rs (typical = quartz = 2650)
A9: 1. In first table below, enter water discharge and sediment supply rate in units of m3/s | F9: Maximum qs | G9: Minimum qs | K9: 1000 | L9: =K9*(0.3048)^3 -> 28.31684659
B10: and the minimum and maximum channel widths to be evaluated | F10: =2650*B17/B20 -> 0.053 | G10: =2650*B17/B21 -> 0.008833333333 | H10: Case 1 | J10: Transport Rate | K10: Channel Width | L10: Transport Rate
A11: 2. In second table below, enter grain size and cumulative % in order of decreasing grain size | F11: =2650*B19/B20 -> 0.212 | G11: =2650*B19/B21 -> 0.03533333333 | H11: Case 2 | J11: (kg/m/s) | K11: (m) | L11: (m3/s)
A12: 3. In cells to right, enter side slope angle z and side slope roughness ns | F12: =SQRT(1+z^2) -> 1.414213562 | G12: root | J12: 1 | K12: 10 | L12: =J12/M8*K12 -> 0.003773584906 | M12: For bed-material load in kg/m/s, 0.2 is respectable, 1.0 is a big number, 5 is getting really big
A13: 4. Check input for errors and then click once on the Run STAB button | F13: this cell intentionally left blank | K13: Transport Rate | L13: Transport Rate
A14: 5. Results appear on Worksheet "STAB OUTPUT" | K14: (kg/hr) | L14: (m3/s)
A15: Parameter | B15: Value | C15: Description | D15: Units | E15: Parameter | F15: Value | G15: Description | H15: Units | K15: 10 | L15: =K15/M8/3600 -> 1.048218029e-06
A16: Q1 | B16: 20 | C16: Case 1 water discharge | D16: m3/s | E16: z | F16: 1 | G16: side slope z:1 H:V | H16: 0 | K16: Transport Rate | L16: Transport Rate
A17: QT1 | B17: 0.0001 | C17: Case 1 sediment supply rate | D17: m3/s | E17: ns | F17: 0.08 | G17: side slope roughness | H17: #&%@$ | K17: (tons/day) | L17: (m3/s)
A18: Q2 | B18: 35 | C18: Case 2 water discharge | D18: m3/s | K18: 10 | L18: =K18*2000/2.2/M8/24/3600 -> 3.970522838e-05 | M18: where ton = 2000 lb or 909 kg of sediment
A19: QT2 | B19: 0.0004 | C19: Case 2 sediment supply rate | D19: m3/s | J19: Transport Rate | K19: Water Discharge | L19: Transport Rate
A20: bmin | B20: 5 | C20: Minimum bottom width | D20: m | J20: (mg/L) | K20: (m3/s) | L20: (m3/s)
A21: bmax | B21: 30 | C21: Maximum bottom width | D21: m | J21: 1000 | K21: 5 | L21: =J21*K21/1000/1000/2650*1000 -> 0.001886792453
A23: D (mm) | B23: Case 1 Transport Grain Size (% Finer) | C23: Case 2 Transport Grain Size (% Finer)
A24: 45.254834 | B24: 100 | C24: 100
A25: 32 | B25: 98.46153846 | C25: 98.46153846
A26: 22.627417 | B26: 82.11538462 | C26: 82.11538462
A27: 16 | B27: 65.76923077 | C27: 65.76923077 | E27: Statistic | F27: FIRST Transport GSD | G27: SECOND Transport GSD | H27: Units
A28: 11.3137085 | B28: 59.03846154 | C28: 59.03846154 | E28: Dmin | F28: 0.25 | G28: 0.25 | H28: mm
A29: 8 | B29: 54.23076923 | C29: 54.23076923 | E29: Dmax | F29: 45.254834 | G29: 45.254834 | H29: mm
A30: 5.656854249 | B30: 50.96153846 | C30: 50.96153846 | E30: D50 | F30: 5.0396842 | G30: 5.0396842 | H30: mm
A31: 4 | B31: 48.07692308 | C31: 48.07692308 | E31: Dg | F31: 4.163198386 | G31: 4.163198386 | H31: mm
A32: 2.828427125 | B32: 43.26923077 | C32: 43.26923077 | E32: sg | F32: 2.299464499 | G32: 2.299464499 | H32: f/y-units
A33: 2 | B33: 37.5 | C33: 37.5 | E33: Fs | F33: 37.5 | G33: 37.5 | H33: %
A34: 1.414213562 | B34: 31.73076923 | C34: 31.73076923
A35: 1 | B35: 26.92307692 | C35: 26.92307692
A36: 0.5 | B36: 13.46153846 | C36: 13.46153846
A37: 0.25 | B37: 0 | C37: 0

Sheet STAB OUTPUT
A1: Channel Stability chart developed using inverse calculation of the Wilcock & Crowe (2003) transport relation. | L1: z | M1: =z -> 1 | N1: side slope z:1 H:V | P1: ns | Q1: =ns -> 0.08 | R1: side slope roughness
A2: 1. CHANNEL STABILITY DIAGRAM | L2: 2. THRESHOLD CHECK - SLOPE AS FN(SEDIMENT SUPPLY RATE) AT MEAN WIDTH
O21: ='STAB plot DATA'!A28 -> 17.5 | P21: =Qone/('STAB plot DATA'!A28*'STAB plot DATA'!F28) -> 1.343355963 | Q21: =QTone/'STAB plot DATA'!A28*2650 -> 0.01514285714
L22: 3. GRAIN-SIZE DISTRIBUTIONS | O22: ='STAB plot DATA'!A28 -> 17.5 | P22: =Qtwo/('STAB plot DATA'!A28*'STAB plot DATA'!N28) -> 1.541553024 | Q22: =QTtwo/'STAB plot DATA'!A28*2650 -> 0.06057142857

Sheet STAB plot DATA
A1: OUTPUT | B1: Case 1 | J1: Case 2 | U1: Output for different feed rates to mean width | V1: Case 1 | AD1: Case 2
A2: b (m) | B2: nD1 | C2: tb1 (Pa) | D2: G1 | E2: Ds150 | F2: h1 (m) | G2: nc1 | H2: Rt1 (m) | I2: S1 | J2: nD2 | K2: tb2 (Pa) | L2: G2 | M2: Ds250 | N2: h2 (m) | O2: nc2 | P2: Rt2 (m) | Q2: S2 | S2: QT (kg/hr) | T2: qT (m^2/s) | U2: b (m) | V2: nD1 | W2: tb1 (Pa) | X2: G1 | Y2: Ds184 | Z2: h1 (m) | AA2: nc1 | AB2: Rt1 (m) | AC2: S1 | AD2: nD2 | AE2: tb2 (Pa) | AF2: G2 | AG2: Ds284 | AH2: h2 (m) | AI2: nc2 | AJ2: Rt2 (m) | AK2: S2 | AO2: F1 | AP2: F2
A3: 5 | B3: 0.02462083203 | C3: 11.93544455 | D3: 3.265919972 | E3: 23.07417817 | F3: =IF(ISERROR(F3),B3*Qone/(SQRT(I3)*$A3),(G3*Qone/SQRT(I3)*($A3+2*F3*root)^(2/3))^0.6/($A3+z*F3)) -> 2.091450523 | G3: =($A3+2*F3*root)*(($A3+z*F3)*F3/($A3+2*F3*root))^(5/3)/(($A3*F3)^(5/3)/(B3*($A3+2*F3)^(2/3))+2*F3*(1+root)/ns*(z*F3/(2*(1+root)))^(5/3)) -> 0.03679600464 | H3: =F3*($A3+z*F3)/($A3+2*F3*root) -> 1.358746461 | I3: =IF(ISERROR(I3),0.001,(G3/B3)^1.5*C3/(9810*H3)) -> 0.001635980322 | J3: 0.02416978406 | K3: 14.79827016 | L3: 2.617232321 | M3: 20.651258 | N3: =IF(ISERROR(N3),J3*Qtwo/(SQRT(Q3)*$A3),(O3*Qtwo/SQRT(Q3)*($A3+2*N3*root)^(2/3))^0.6/($A3+z*N3)) -> 2.879753478 | O3: =($A3+2*N3*root)*(($A3+z*N3)*N3/($A3+2*N3*root))^(5/3)/(($A3*N3)^(5/3)/(J3*($A3+2*N3)^(2/3))+2*N3*(1+root)/ns*(z*N3/(2*(1+root)))^(5/3)) -> 0.04097631779 | P3: =N3*($A3+z*N3)/($A3+2*N3*root) -> 1.726241849 | Q3: =IF(ISERROR(Q3),0.001,(O3/J3)^1.5*K3/(9810*P3)) -> 0.001928992512 | S3: =T3*U3*2650*3600 -> 1.6695 | T3: 1e-08 | U3: 17.5 | V3: 0.02490816056 | W3: 7.156611975 | X3: 4.946943187 | Y3: 20.59510589 | Z3: =IF(ISERROR(Z3),V3*Qone/(SQRT(AC3)*$U3),(AA3*Qone/SQRT(AC3)*($U3+2*Z3*root)^(2/3))^0.6/($U3+z*Z3)) -> 1.023096863 | AA3: =($U3+2*Z3*root)*(($U3+z*Z3)*Z3/($U3+2*Z3*root))^(5/3)/(($U3*Z3)^(5/3)/(V3*($U3+2*Z3)^(2/3))+2*Z3*(1+root)/ns*(z*Z3/(2*(1+root)))^(5/3)) -> 0.02643679563 | AB3: =Z3*($U3+z*Z3)/($U3+2*Z3*root) -> 0.9292512519 | AC3: =IF(ISERROR(AC3),0.001,(AA3/V3)^1.5*W3/(9810*AB3)) -> 0.0008584322877 | AD3: 0.02490816056 | AE3: 7.156611975 | AF3: 4.946943187 | AG3: 20.59510589 | AH3: =IF(ISERROR(AH3),AD3*Qtwo/(SQRT(AK3)*$U3),(AI3*Qtwo/SQRT(AK3)*($U3+2*AH3*root)^(2/3))^0.6/($U3+z*AH3)) -> 1.631334723 | AI3: =($U3+2*AH3*root)*(($U3+z*AH3)*AH3/($U3+2*AH3*root))^(5/3)/(($U3*AH3)^(5/3)/(AD3*($U3+2*AH3)^(2/3))+2*AH3*(1+root)/ns*(z*AH3/(2*(1+root)))^(5/3)) -> 0.02739549087 | AJ3: =AH3*($U3+z*AH3)/($U3+2*AH3*root) -> 1.411298428 | AK3: =IF(ISERROR(AK3),0.001,(AI3/AD3)^1.5*AE3/(9810*AJ3)) -> 0.0005962463732 | AO3: =Qone/(A3*SQRT(9.81)*F3^1.5) -> 0.4222348688 | AP3: =Qtwo/(A3*SQRT(9.81)*N3^1.5) -> 0.4573309244
A4: 5.5 | B4: 0.0246399658 | C4: 11.82353499 | D4: 3.316928257 | E4: 23.18197828 | F4: 1.976085914 | G4: 0.03500174322 | H4: 1.332230286 | I4: =IF(ISERROR(I4),0.001,(G4/B4)^1.5*C4/(9810*H4)) -> 0.001531698869 | J4: 0.02420410563 | K4: 14.5148918 | L4: 2.656560476 | M4: 20.82783499 | N4: 2.746773883 | O4: 0.03869216774 | P4: 1.707132277 | Q4: 0.001751776336 | S4: 2.992783097 | T4: 1.7926224e-08 | U4: 17.5 | V4: 0.02490816056 | W4: 7.636122646 | X4: 4.946943187 | Y4: 20.59510589 | Z4: 0.9956429066 | AA4: 0.02639429386 | AB4: 0.9064265572 | AC4: =IF(ISERROR(AC4),0.001,(AA4/V4)^1.5*W4/(9810*AB4)) -> 0.0009367503259 | AD4: 0.02490816056 | AE4: 7.636122646 | AF4: 4.946943187 | AG4: 20.59510589 | AH4: 1.588091768 | AI4: 0.02732632698 | AJ4: 1.378406446 | AK4: 0.0006489122885 | AO4: 0.417949749 | AP4: 0.4463098658
A5: 6 | B5: 0.02465741424 | C5: 11.72957675 | D5: 3.364259801 | E5: 23.28064872 | F5: 1.872136686 | G5: 0.03357445146 | H5: 1.304776634 | I5: 0.001456026419 | J5: 0.02423569422 | K5: 14.26913855 | L5: 2.693108313 | M5: 20.99146152 | N5: 2.624623735 | O5: 0.03684179886 | P5: 1.686318479 | Q5: 0.001616654415 | S5: 5.364930018 | T5: 3.213495069e-08 | U5: 17.5 | V5: 0.02490815839 | W5: 8.147832536 | X5: 4.946963538 | Y5: 20.59519062 | Z5: 0.968907068 | AA5: 0.02635297077 | AB5: 0.8841021515 | AC5: 0.001022357016 | AD5: 0.02490815839 | AE5: 8.147832536 | AF5: 4.946963538 | AG5: 20.59519062 | AH5: 1.545953243 | AI5: 0.02725906613 | AJ5: 1.346165135 | AK5: 0.0007063643631 | AO5: 0.4154683172 | AP5: 0.4380076668
A6: 6.5 | B6: 0.02467345515 | C6: 11.64994152 | D6: 3.408451594 | E6: 23.37166821 | F6: 1.778166353 | G6: 0.03242340372 | H6: 1.276730712 | I6: 0.001401194367 | J6: 0.02426496968 | K6: 14.05358618 | L6: 2.727278437 | M6: 21.14406124 | N6: 2.512288474 | O6: 0.03532615549 | P6: 1.664101125 | Q6: 0.001512214418 | S6: 9.617293724 | T6: 5.760583243e-08 | U6: 17.5 | V6: 0.02490840419 | W6: 8.685243977 | X6: 4.944668249 | Y6: 20.58563487 | Z6: 0.9432743269 | AA6: 0.02631367765 | AB6: 0.8626081965 | AC6: 0.001114430279 | AD6: 0.02490840419 | AE6: 8.685243977 | AF6: 4.944668249 | AG6: 20.58563487 | AH6: 1.505528464 | AI6: 0.0271949394 | AJ6: 1.315056489 | AK6: 0.000768036559 | AO6: 0.4143082229 | AP6: 0.4317336754
A7: 7 | B7: 0.02468828089 | C7: 11.58183642 | D7: 3.449890582 | E7: 23.456056 | F7: 1.692932211 | G7: 0.03148352393 | H7: 1.248398902 | I7: 0.001361895458 | J7: 0.024292261 | K7: 13.86270807 | L7: 2.759389501 | M7: 21.2871501 | N7: 2.408811894 | O7: 0.03407188477 | P7: 1.640759697 | Q7: =IF(ISERROR(Q7),0.001,(O7/J7)^1.5*K7/(9810*P7)) -> 0.00143062701 | S7: 17.24017616 | T7: 1.032655056e-07 | U7: 17.5 | V7: 0.02490926007 | W7: 9.232441829 | X7: 4.93621911 | Y7: 20.55045943 | Z7: 0.9193971533 | AA7: 0.02627779 | AB7: 0.8425056714 | AC7: 0.001210366111 | AD7: 0.02490926007 | AE7: 9.232441829 | AF7: 4.93621911 | AG7: 20.55045943 | AH7: 1.467850344 | AI7: 0.02713596171 | AJ7: 1.285901602 | AK7: 0.0008321783662 | AO7: 0.4141313417 | AP7: 0.4270032399
A8: 7.5 | B8: 0.02470174501 | C8: 11.52182454 | D8: 3.488389702 | E8: 23.53291337 | F8: 1.615419384 | G8: 0.03070724546 | H8: 1.220076894 | I8: 0.001334242858 | J8: 0.02431783098 | K8: 13.69229413 | L8: 2.789698336 | M8: 21.42194518 | N8: 2.313316072 | O8: 0.03302405662 | P8: 1.616551132 | Q8: 0.00136639462 | S8: 30.90512596 | T8: 1.851160585e-07 | U8: 17.5 | V8: 0.02491122002 | W8: 9.756442399 | X8: 4.915439116 | Y8: 20.46394819 | Z8: 0.8983695644 | AA8: 0.02624749324 | AB8: 0.8247371712 | AC8: 0.001304205902 | AD8: 0.02491122002 | AE8: 9.756442399 | AF8: 4.915439116 | AG8: 20.46394819 | AH8: 1.434651183 | AI8: 0.02708538499 | AJ8: 1.260082743 | AK8: 0.0008948153735 | AO8: 0.4146735108 | AP8: 0.4234672364
A9: 8 | B9: 0.02471407572 | C9: 11.46876843 | D9: 3.524388783 | E9: 23.6034849 | F9: 1.544677139 | G9: 0.03005945172 | H9: 1.191966737 | I9: 0.001315644829 | J9: 0.02434189289 | K9: 13.53907335 | L9: 2.818415183 | M9: 21.54943923 | N9: 2.225006955 | O9: 0.03214105883 | P9: 1.591707954 | Q9: 0.001315574043 | S9: 55.40122107 | T9: 3.31843193e-07 | U9: 17.5 | V9: 0.02491475396 | W9: 10.21223418 | X9: 4.873333277 | Y9: 20.28865323 | Z9: 0.8813918993 | AA9: 0.02622510251 | AB9: 0.8103460312 | AC9: 0.00138730559 | AD9: 0.02491475396 | AE9: 10.21223418 | AF9: 4.873333277 | AG9: 20.28865323 | AH9: 1.407834028 | AI9: 0.02704668856 | AJ9: 1.239137265 | AK9: 0.0009502077895 | AO9: 0.4157659569 | AP9: 0.42086857
A10: 8.5 | B10: 0.02472541719 | C10: 11.42158659 | D10: 3.55817839 | E10: 23.66855038 | F10: 1.479899496 | G10: 0.02951378076 | H10: 1.164235787 | I10: 0.001304182332 | J10: 0.02436462233 | K10: 13.40046069 | L10: 2.845714471 | M10: 21.67045321 | N10: 2.143172641 | O10: 0.03139100722 | P10: 1.566437148 | Q10: 0.001275281613 | S10: 99.31346988 | T10: 5.94869541e-07 | U10: 17.5 | V10: 0.02492017263 | W10: 10.57086934 | X10: 4.797032264 | Y10: 19.97099698 | Z10: 0.8688474716 | AA10: 0.02621150886 | AB10: 0.7996867978 | AC10: 0.001453560907 | AD10: 0.02492017263 | AE10: 10.57086934 | AF10: 4.797032264 | AG10: 19.97099698 | AH10: 1.388012343 | AI10: 0.02702113218 | AJ10: 1.223603412 | AK10: 0.0009943282107 | AO10: 0.4172806373 | AP10: 0.4190143341
A11: 9 | B11: 0.02473588898 | C11: 11.379415 | D11: 3.590001563 | E11: 23.72875919 | F11: 1.420394236 | G11: 0.02905018457 | H11: 1.137014699 | I11: 0.00129842512 | J11: 0.02438616561 | K11: 13.27438265 | L11: 2.871742627 | M11: 21.78567417 | N11: 2.067178125 | O11: 0.03074920256 | P11: 1.54092006 | Q11: 0.001243370972 | S11: 178.0315507 | T11: 1.066376464e-06 | U11: 17.5 | V11: 0.02492686198 | W11: 10.80779924 | X11: 4.67255909 | Y11: 19.45279046 | Z11: 0.8609771473 | AA11: 0.02620642347 | AB11: 0.7929879264 | AC11: 0.001497655428 | AD11: 0.02492686198 | AE11: 10.80779924 | AF11: 4.67255909 | AG11: 19.45279046 | AH11: 1.375573139 | AI11: 0.02700863487 | AJ11: 1.213832236 | AK11: 0.001023675081 | AO11: 0.4191212019 | AP11: 0.4177574276
A12: 9.5 | B12: 0.0247455916 | C12: 11.3415543 | D12: 3.620064231 | E12: 23.78465944 | F12: 1.365565635 | G12: 0.02865322729 | H12: 1.110402311 | I12: 0.001297289096 | J12: 0.02440664598 | K12: 13.15915414 | L12: 2.896623848 | M12: 21.89568322 | N12: 1.996458557 | O12: 0.03019631176 | P12: 1.515313213 | Q12: 0.00121821868 | S12: 319.1433457 | T12: 1.911610337e-06 | U12: 17.5 | V12: 0.02492882415 | W12: 10.91722327 | X12: 4.483618456 | Y12: 18.66619312 | Z12: 0.8573923768 | AA12: 0.02620297367 | AB12: 0.7899338279 | AC12: 0.001518188341 | AD12: 0.02492882415 | AE12: 10.91722327 | AF12: 4.483618456 | AG12: 18.66619312 | AH12: 1.369906612 | AI12: 0.02700177875 | AJ12: 1.209375233 | AK12: 0.0010373325 | AO12: 0.4212142139 | AP12: 0.4169840914
A13: 10 | B13: 0.02475460916 | C13: 11.30743142 | D13: 3.648540339 | E13: 23.83671111 | F13: 1.314899635 | G13: 0.02831088564 | H13: 1.084470541 | I13: 0.001299939883 | J13: 0.02442616873 | K13: 13.0533898 | L13: 2.920464844 | M13: 22.00097901 | N13: 1.930512136 | O13: 0.02971705392 | P13: 1.489749828 | Q13: 0.001198578699 | S13: 572.1035104 | T13: 3.42679551e-06 | U13: 17.5 | V13: 0.0248977562 | W13: 10.95768938 | X13: 4.222609226 | Y13: 17.57955991 | Z13: 0.8551620108 | AA13: 0.02616708406 | AB13: 0.7880327165 | AC13: 0.001527208768 | AD13: 0.0248977562 | AE13: 10.95768938 | AF13: 4.222609226 | AG13: 17.57955991 | AH13: 1.366382125 | AI13: 0.02696287359 | AJ13: 1.206601193 | AK13: 0.001043266293 | AO13: 0.4235030913 | AP13: 0.4166052479
A14: 10.5 | B14: 0.02476301416 | C14: 11.27657229 | D14: 3.675580807 | E14: 23.88531242 | F14: 1.267951376 | G14: 0.02801369619 | H14: 1.059269048 | I14: 0.001305726388 | J14: 0.02444482285 | K14: 12.95593868 | L14: 2.943356612 | M14: 22.10198381 | N14: 1.868893058 | O14: 0.02929923735 | P14: 1.464341672 | Q14: 0.00118348181 | S14: 1025.565568 | T14: 6.142950391e-06 | U14: 17.5 | V14: 0.02483059684 | W14: 11.06595506 | X14: 3.915650203 | Y14: 16.3016286 | Z14: 0.8497001848 | AA14: 0.0260885486 | AB14: 0.7833742067 | AC14: 0.001550760629 | AD14: 0.02483059684 | AE14: 11.06595506 | AF14: 3.915650203 | AG14: 16.3016286 | AH14: 1.357749975 | AI14: 0.02687721865 | AJ14: 1.199801002 | AK14: 0.001058781692 | AO14: 0.425943793 | AP14: 0.416550409
A15: 11 | B15: 0.02477086865 | C15: 11.24858079 | D15: 3.701315834 | E15: 23.93080507 | F15: 1.224334629 | G15: 0.0277541354 | H15: 1.034829356 | I15: 0.001314134097 | J15: 0.02446268647 | K15: 12.86583579 | L15: 2.965379272 | M15: 22.19907025 | N15: 1.811205195 | O15: 0.02893305398 | P15: 1.439181303 | Q15: 0.001172164813 | S15: 1838.45181 | T15: 1.101199047e-05 | U15: 17.5 | V15: 0.02473751079 | W15: 11.37300455 | X15: 3.594986861 | Y15: 14.9666435 | Z15: 0.837320499 | AA15: 0.02597244059 | AB15: 0.7727996024 | AC15: 0.001613891977 | AD15: 0.02473751079 | AE15: 11.37300455 | AF15: 3.594986861 | AG15: 14.9666435 | AH15: 1.338177679 | AI15: 0.02674667363 | AJ15: 1.184350588 | AK15: 0.0011005166 | AO15: 0.428501757 | AP15: 0.4167632083
A16: 11.5 | B16: 0.02477822628 | C16: 11.2231232 | D16: 3.725858867 | E16: 23.97348542 | F16: 1.183712971 | G16: 0.02752616712 | H16: 1.011168452 | I16: 0.001324751753 | J16: 0.02447982722 | K16: 12.78226512 | L16: 2.98660264 | M16: 22.29256183 | N16: 1.757096112 | O16: 0.02861054774 | P16: 1.414344203 | Q16: 0.001164019981 | S16: 3295.649895 | T16: 1.974034079e-05 | U16: 17.5 | V16: 0.02462345705 | W16: 11.91953794 | X16: 3.272862193 | Y16: 13.6255746 | Z16: 0.8177519363 | AA16: 0.02582370179 | AB16: 0.7560396501 | AC16: 0.001726036789 | AD16: 0.02462345705 | AE16: 11.91953794 | AF16: 3.272862193 | AG16: 13.6255746 | AH16: 1.307226206 | AI16: 0.02657615967 | AJ16: 1.159826481 | AK16: 0.001174660026 | AO16: 0.4311496537 | AP16: 0.4171981977
A17: 12 | B17: 0.02478513373 | C17: 11.19991617 | D17: 3.749309348 | E17: 24.01361204 | F17: 1.145792385 | G17: 0.02732490699 | H17: 0.9882918505 | I17: 0.001337247175 | J17: 0.02449630433 | K17: 12.70453138 | L17: 3.007088197 | M17: 22.38274277 | N17: 1.706251833 | O17: 0.02832521637 | P17: 1.389890934 | Q17: 0.001158558377 | S17: 5907.855824 | T17: 3.538697709e-05 | U17: 17.5 | V17: 0.02447317636 | W17: 12.81436061 | X17: 2.978357043 | Y17: 12.39949123 | Z17: 0.7891171544 | AA17: 0.02562385289 | AB17: 0.7314152177 | AC17: 0.001913352907 | AD17: 0.02447317636 | AE17: 12.81436061 | AF17: 2.978357043 | AG17: 12.39949123 | AH17: 1.261907175 | AI17: 0.02634516769 | AJ17: 1.123714771 | AK17: 0.001298338051 | AO17: 0.4338657309 | AP17: 0.417818435
A18: 12.5 | B18: 0.02479163183 | C18: 11.17871744 | D18: 3.771754923 | E18: 24.05141171 | F18: 1.110315057 | G18: 0.02714637107 | H18: 0.9661961358 | I18: 0.001351349473 | J18: 0.02451216998 | K18: 12.632038 | L18: 3.026890378 | M18: 22.46986424 | N18: 1.65839219 | O18: 0.02807170797 | P18: 1.365869162 | Q18: 0.001155382892 | S18: 10590.55469 | T18: 6.343548779e-05 | U18: 17.5 | V18: 0.02425384063 | W18: 14.13418342 | X18: 2.714254977 | Y18: 11.29998194 | Z18: 0.7514536899 | AA18: 0.02533927914 | AB18: 0.6988443475 | AC18: 0.002201617472 | AD18: 0.02425384063 | AE18: 14.13418342 | AF18: 2.714254977 | AG18: 11.29998194 | AH18: 1.202250681 | AI18: 0.0260195892 | AJ18: 1.075802819 | AK18: 0.001488157549 | AO18: 0.4366325769 | AP18: 0.4185936749
A19: 13 | B19: 0.02479775646 | C19: 11.15931856 | D19: 3.793273235 | E19: 24.08708435 | F19: 1.077054176 | G19: 0.02698728562 | H19: 0.9448710642 | I19: 0.001366835787 | J19: 0.02452747002 | K19: 12.56426975 | L19: 3.046057325 | M19: 22.55414728 | N19: 1.613266713 | O19: 0.02784558764 | P19: 1.342315488 | Q19: 0.001154168173 | S19: 18984.86556 | T19: 0.0001137158764 | U19: 17.5 | V19: 0.02404564675 | W19: 15.98277648 | X19: 2.478344707 | Y19: 10.31784068 | Z19: 0.7083111707 | AA19: 0.0250592241 | AB19: 0.6612767972 | AC19: 0.00262117894 | AD19: 0.02404564675 | AE19: 15.98277648 | AF19: 2.478344707 | AG19: 10.31784068 | AH19: 1.133845826 | AI19: 0.02569431804 | AJ19: 1.020326847 | AK19: 0.001763781786 | AO19: 0.4394361856 | AP19: 0.4194989989
A20: 13.5 | B20: 0.02480353936 | C20: 11.14153912 | D20: 3.813933385 | E20: 24.120807 | F20: 1.045809561 | G20: 0.02684494165 | H20: 0.9243012693 | I20: 0.00138352128 | J20: 0.02454151593 | K20: 12.50077926 | L20: 3.064633106 | M20: 22.63175349 | N20: 1.570612861 | O20: 0.02764226819 | P20: 1.319229638 | Q20: 0.001154665302 | S20: 34032.69526 | T20: 0.0002038496272 | U20: 17.5 | V20: 0.02384815231 | W20: 18.51668226 | X20: 2.268417534 | Y20: 9.443872216 | Z20: 0.6610144918 | AA20: 0.02478534521 | AB20: 0.6197688313 | AC20: 0.00322682036 | AD20: 0.02384815231 | AE20: 18.51668226 | AF20: 2.268417534 | AG20: 9.443872216 | AH20: 1.058769231 | AI20: 0.02537233919 | AJ20: 0.9587600806 | AK20: 0.002160443344 | AO20: 0.4422652445 | AP20: 0.4205290944
A21: 14 | B21: 0.02480900865 | C21: 11.12522211 | D21: 3.833797135 | E21: 24.15273709 | F21: 1.016403978 | G21: 0.0267170829 | H21: 0.9044676387 | I21: 0.001401251502 | J21: 0.02454889246 | K21: 12.44117568 | L21: 3.082656227 | M21: 22.6725992 | N21: 1.529953168 | O21: 0.02745210436 | P21: 1.296427838 | Q21: 0.001156803713 | S21: 61007.77186 | T21: 0.000365425408 | U21: 17.5 | V21: 0.02366105294 | W21: 21.96488774 | X21: 2.082347018 | Y21: 8.669223742 | Z21: 0.6108955937 | AA21: 0.02451936552 | AB21: 0.5754076872 | AC21: 0.004104847828 | AD21: 0.02366105294 | AE21: 21.96488774 | AF21: 2.082347018 | AG21: 8.669223742 | AH21: 0.9791157229 | AI21: 0.02505666343 | AJ21: 0.8926377058 | AK21: 0.002733496429 | AO21: 0.4451105848 | AP21: 0.42178225
A22: 14.5 | B22: 0.02481418941 | C22: 11.11023019 | D22: 3.852919914 | E22: 24.18301516 | F22: 0.9886800298 | G22: 0.02660181858 | H22: 0.8853484135 | I22: 0.001419896498 | J22: 0.02455600159 | K22: 12.385116 | L22: 3.100161761 | M22: 22.7120224 | N22: 1.491446639 | O22: 0.02728031114 | P22: 1.274164887 | Q22: 0.001160226921 | S22: 109363.8984 | T22: 0.0006550697719 | U22: 17.5 | V22: 0.02348406465 | W22: 26.65896492 | X22: 1.918214421 | Y22: 7.985907179 | Z22: 0.5592554615 | AA22: 0.02426289903 | AB22: 0.5292860317 | AC22: 0.005391852195 | AD22: 0.02348406465 | AE22: 26.65896492 | AF22: 1.918214421 | AG22: 7.985907179 | AH22: 0.8969397856 | AI22: 0.02475011497 | AJ22: 0.8235267678 | AK22: 0.003570281717 | AO22: 0.4479647559 | AP22: 0.4231106519
A23: 15 | B23: 0.02481910404 | C23: 11.09644272 | D23: 3.871351644 | E23: 24.21176714 | F23: 0.9624975197 | G23: 0.02649755508 | H23: 0.8669200599 | I23: 0.00143934622 | J23: 0.02456286174 | K23: 12.33229768 | L23: 3.117180767 | M23: 22.75011902 | N23: 1.45492791 | O23: 0.02712462874 | P23: 1.252447635 | Q23: 0.001164776696 | S23: 196048.1741 | T23: 0.001174292747 | U23: 17.5 | V23: 0.02331697486 | W23: 33.07811608 | X23: 1.774362033 | Y23: 7.387021153 | Z23: 0.507324264 | AA23: 0.02401745287 | AB23: 0.4824708973 | AC23: 0.007306051879 | AD23: 0.02331697486 | AE23: 33.07811608 | AF23: 1.774362033 | AG23: 7.387021153 | AH23: 0.8141929566 | AI23: 0.02445530043 | AJ23: 0.7529855664 | AK23: 0.004809902854 | AO23: 0.4508216917 | AP23: 0.4245023208
A24: 15.5 | B24: 0.02482377266 | C24: 11.08375319 | D24: 3.88913745 | E24: 24.23910625 | F24: 0.9377312161 | G24: 0.02640294192 | H24: 0.8491579546 | I24: 0.001459506923 | J24: 0.0245694904 | K24: 12.28245295 | L24: 3.133742979 | M24: 22.78698066 | N24: 1.420247729 | O24: 0.02698313284 | P24: 1.231278407 | Q24: 0.001170318776 | S24: 351440.3483 | T24: 0.002105063482 | U24: 17.5 | V24: 0.02315253321 | W24: 41.91534702 | X24: 1.649317934 | Y24: 6.866437759 | Z24: 0.456102676 | AA24: 0.02377693387 | AB24: 0.4358596755 | AC24: 0.01020218909 | AD24: 0.02315253321 | AE24: 41.91534702 | AF24: 1.649317934 | AG24: 6.866437759 | AH24: 0.7324704773 | AI24: 0.02416687237 | AJ24: 0.682348467 | AK24: 0.006677758941 | AO24: 0.4536764476 | AP24: 0.4259471211
A25: 16 | B25: 0.02482821337 | C25: 11.07206726 | D25: 3.90631825 | E25: 24.26513457 | F25: 0.9142689441 | G25: 0.02631682885 | H25: 0.8320369185 | I25: 0.001480298304 | J25: 0.02457590262 | K25: 12.2353436 | L25: 3.149874315 | M25: 22.82268603 | N25: 1.387271046 | O25: 0.0268541754 | P25: 1.210655782 | Q25: 0.001176738594 | S25: 629999.8406 | T25: 0.003773583951 | U25: 17.5 | V25: 0.02272800964 | W25: 54.17414463 | X25: 1.541651764 | Y25: 6.418202135 | Z25: 0.4026506436 | AA25: 0.02326888925 | AB25: 0.3867463305 | AC25: 0.0147917046 | AD25: 0.02272800964 | AE25: 54.17414463 | AF25: 1.541651764 | AG25: 6.418202135 | AH25: 0.6470782651 | AI25: 0.02360632582 | AJ25: 0.607472845 | AK25: 0.00962269398 | AO25: 0.4565249919 | AP25: 0.4274364703
A26: 16.5 | B26: 0.0248324425 | C26: 11.061301 | D26: 3.922931261 | E26: 24.28994445 | F26: 0.8920099572 | G26: 0.02623823138 | H26: 0.8155316281 | I26: 0.001501651218 | J26: 0.0245821122 | K26: 12.19075702 | L26: 3.16559875 | M26: 22.85730747 | N26: 1.355875459 | O26: 0.02673633957 | P26: 1.190575332 | Q26: 0.001183937878 | AO26: 0.4593640396 | AP26: 0.4289630614
A27: 17 | B27: 0.02483647486 | C27: 11.0513795 | D27: 3.939010429 | E27: 24.31361968 | F27: 0.8708635404 | G27: 0.02616630307 | H27: 0.7996169302 | I27: 0.001523505841 | J27: 0.02458813167 | K27: 12.14850277 | L27: 3.18093825 | M27: 22.89091072 | N27: 1.325949805 | O27: 0.02662840193 | P27: 1.171030212 | Q27: 0.001191831912 | AO27: 0.4621909181 | AP27: 0.4305206563
A28: 17.5 | B28: 0.02484032388 | C28: 11.0422357 | D28: 3.9545868 | E28: 24.3362364 | F28: 0.8507478093 | G28: 0.02610031306 | H28: 0.7842680764 | I28: 0.001545810176 | J28: 0.02459397244 | K28: 12.10840971 | L28: 3.195912997 | M28: 22.92355571 | N28: 1.297392934 | O28: 0.02652930188 | P28: 1.152011669 | Q28: 0.001200347332 | U28: =A28 -> 17.5 | V28: =QTone*2650*3600 -> 954 | W28: =I28 -> 0.001545810176 | AO28: 0.4650034597 | AP28: 0.4321039136
A29: 18 | B29: 0.0248440018 | C29: 11.03380933 | D29: 3.969688839 | E29: 24.35786408 | F29: 0.8315886749 | G29: 0.02603962764 | H29: 0.7694608976 | I29: 0.001568518839 | J29: 0.02459964524 | K29: 12.07032364 | L29: 3.210542102 | M29: 22.95529901 | N29: 1.270112647 | O29: 0.02643811679 | P29: 1.133509471 | Q29: 0.001209420327 | U29: =A28 -> 17.5 | V29: =QTtwo*2650*3600 -> 3816 | W29: =Q28 -> 0.001200347332 | AO29: 0.4677999139 | AP29: 0.4337082415
A30: 18.5 | B30: 0.02484751977 | C30: 11.0260461 | D30: 3.984342708 | E30: 24.37856617 | F30: 0.8133189485 | G30: 0.02598369526 | H30: 0.7551719274 | I30: 0.001591592059 | J30: 0.02460515904 | K30: 12.03410492 | L30: 3.224841801 | M30: 22.98618773 | N30: 1.244024714 | O30: 0.02635403993 | P30: 1.115512231 | Q30: 0.001218995169 | AO30: 0.4705788757 | AP30: 0.4353297024
A31: 19 | B31: 0.02485088798 | C31: 11.01889697 | D31: 3.998572509 | E31: 24.39840078 | F31: 0.7958775644 | G31: 0.02593203409 | H31: 0.7413784884 | I31: 0.001614994853 | J31: 0.02461052284 | K31: 11.99962712 | L31: 3.238828377 | M31: 23.01626938 | N31: 1.219052098 | O31: 0.02627636509 | P31: 1.098007745 | Q31: 0.001229023001 | AO31: 0.4733392276 | AP31: 0.4369648875
A32: 19.5 | B32: 0.0248541158 | C32: 11.01231749 | D32: 4.012400483 | E32: 24.41742124 | F32: 0.7792089048 | G32: 0.02588422173 | H32: 0.728058747 | I32: 0.001638696339 | J32: 0.0246157447 | K32: 11.96677526 | L32: 3.252516544 | M32: 23.04558646 | N32: 1.195124188 | O32: 0.02620447106 | P32: 1.080983207 | Q32: 0.001239460835 | S32: NOTE | AO32: 0.4760800908 | AP32: 0.4386108543
A33: 20 | B33: 0.02485721181 | C33: 11.00626733 | D33: 4.025847205 | E33: 24.43567656 | F33: 0.7632622106 | G33: 0.02583988666 | H33: 0.7151917458 | I33: 0.001662669169 | J33: 0.02462083203 | K33: 11.93544455 | L33: 3.265919972 | M33: 23.07417817 | N33: 1.172176164 | O33: 0.02613780989 | P33: 1.06442542 | Q33: 0.001250270716 | S33: Cells for VBA output, STAB writes to these cells | AO33: 0.4788007865 | AP33: 0.4402650555
A34: 20.5 | B34: 0.02486018363 | C34: 11.00070965 | D34: 4.03893124 | E34: 24.45321034 | F34: 0.7479910624 | G34: 0.02579870078 | H34: 0.7027574133 | I34: 0.001686889031 | J34: 0.02462579168 | K34: 11.90553926 | L34: 3.279051382 | M34: 23.10208078 | N34: 1.150148421 | O34: 0.02607589683 | P34: 1.048320956 | Q34: 0.001261419023 | S34: Cells with formulas on these worksheet | AO34: 0.4815008055 | AP34: 0.4419252826
A35: 21 | B35: 0.02486303913 | C35: 10.99561119 | D35: 4.051671393 | E35: 24.47006772 | F35: =IF(ISERROR(F35),B35*Qone/(SQRT(I35)*$A35),(G35*Qone/SQRT(I35)*($A35+2*F35*root)^(2/3))^0.6/($A35+z*F35)) -> 0.7333529446 | G35: =($A35+2*F35*root)*(($A35+z*F35)*F35/($A35+2*F35*root))^(5/3)/(($A35*F35)^(5/3)/(B35*($A35+2*F35)^(2/3))+2*F35*(1+root)/ns*(z*F35/(2*(1+root)))^(5/3)) -> 0.02576037457 | H35: =F35*($A35+z*F35)/($A35+2*F35*root) -> 0.6907365782 | I35: 0.001711334291 | J35: 0.02463063001 | K35: 11.87697177 | L35: 3.291922633 | M35: 23.1293279 | N35: =IF(ISERROR(N35),J35*Qtwo/(SQRT(Q35)*$A35),(O35*Qtwo/SQRT(Q35)*($A35+2*N35*root)^(2/3))^0.6/($A35+z*N35)) -> 1.128986065 | O35: =($A35+2*N35*root)*(($A35+z*N35)*N35/($A35+2*N35*root))^(5/3)/(($A35*N35)^(5/3)/(J35*($A35+2*N35)^(2/3))+2*N35*(1+root)/ns*(z*N35/(2*(1+root)))^(5/3)) -> 0.02601830178 | P35: =N35*($A35+z*N35)/($A35+2*N35*root) -> 1.032656296 | Q35: =IF(ISERROR(Q35),0.001,(O35/J35)^1.5*K35/(9810*P35)) -> 0.001272875885 | S35: Two things consntrain moving cells on this worksheet | AO35: =Qone/(A35*SQRT(9.81)*F35^1.5) -> 0.4841797669 | AP35: =Qtwo/(A35*SQRT(9.81)*N35^1.5) -> 0.4435896186
A36: 21.5 | B36: 0.02486578472 | C36: 10.9909412 | D36: 4.064083537 | E36: 24.48628536 | F36: 0.7193088235 | G36: 0.0257246502 | H36: 0.6791109368 | I36: 0.001735985588 | J36: 0.02463535289 | K36: 11.84966165 | L36: 3.304544805 | M36: 23.15595072 | N36: 1.108638463 | O36: 0.02596464209 | P36: 1.017417936 | Q36: 0.001284614685 | S36: First, the STAB VBA code writes to certain cells. You can't change these locations without changing the VBA code. | AO36: 0.4868374181 | AP36: 0.4452563974
A37: 22 | B37: 0.02486842661 | C37: 10.98667161 | D37: 4.076183008 | E37: 24.50189894 | F37: 0.7058228149 | G37: 0.02569129847 | H37: 0.6678630495 | I37: 0.00176082558 | J37: 0.0246399658 | K37: 11.82353499 | L37: 3.316928257 | M37: 23.18197828 | N37: 1.08905884 | O37: 0.02591457644 | P37: 1.002592474 | Q37: 0.001296611636 | S37: Second, charts on the worksheet STAB OUTPUT reference particular cells on this worksheet | AO37: 0.4894735998 | AP37: 0.4469241705
A38: 22.5 | B38: 0.02487097056 | C38: 10.98277669 | D38: 4.087984118 | E38: 24.51694153 | F38: 0.6928618702 | G38: 0.02566011485 | H38: 0.6569763135 | I38: 0.00178583869 | J38: 0.02464447383 | K38: 11.79852368 | L38: 3.329082699 | M38: 23.20743762 | N38: 1.070203928 | O38: 0.02586779961 | P38: 0.9881666833 | Q38: 0.001308845429 | AO38: 0.4920882343 | AP38: 0.4485916773
A39: 23 | B39: 0.02487342195 | C39: 10.97923276 | D39: 4.099500302 | E39: 24.53144405 | F39: 0.6803955038 | G39: 0.02563091643 | H39: 0.6464349348 | I39: 0.001811010892 | J39: 0.02464888172 | K39: 11.7745649 | L39: 3.341017239 | M39: 23.23235396 | N39: 1.052033638 | O39: 0.02582403799 | P39: 0.9741275653 | Q39: 0.001321296925 | AO39: 0.4946813114 | AP39: 0.4502578209
A40: 23.5 | B40: 0.02487578563 | C40: 10.97601799 | D40: 4.110743888 | E40: 24.5454345 | F40: 0.6683955481 | G40: 0.025603539 | H40: 0.6362238962 | I40: 0.001836329521 | J40: 0.02465319392 | K40: 11.75160055 | L40: 3.352740436 | M40: 23.2567509 | N40: 1.034510786 | O40: 0.02578304577 | P40: 0.9604623923 | Q40: 0.001333948893 | AO40: 0.4972528796 | AP40: 0.4519216465
A41: 24 | B41: 0.02487806633 | C41: 10.97311229 | D41: 4.121726789 | E41: 24.55894006 | F41: 0.6568359417 | G41: 0.02557783519 | H41: 0.6263289285 | I41: 0.001861783127 | J41: 0.02465741424 | K41: 11.72957675 | L41: 3.364259801 | M41: 23.28064872 | N41: 1.01760082 | O41: 0.02574460123 | P41: 0.9471587329 | Q41: 0.001346785783 | AO41: 0.4998030322 | AP41: 0.4535823291
A42: 24.5 | B42: 0.02488026831 | C42: 10.97049706 | D42: 4.132459949 | E42: 24.57198534 | F42: 0.6456925331 | G42: 0.0255536721 | H42: 0.6167364741 | I42: 0.001887361326 | J42: 0.02466154715 | K42: 11.70844376 | L42: 3.375583921 | M42: 23.30407144 | N42: 1.001271628 | O42: 0.02570850527 | P42: 0.9342045036 | Q42: 0.001359793536 | AO42: 0.5023319034 | AP42: 0.4552391367
A43: 25 | B43: 0.02488239558 | C43: 10.96815509 | D43: 4.142953705 | E43: 24.58459352 | F43: 0.634942911 | G43: 0.02553092979 | H43: 0.6074336559 | I43: 0.00191305469 | J43: 0.02466559603 | K43: 11.68815514 | L43: 3.386719483 | M43: 23.32703693 | N43: 0.9854932851 | O43: 0.02567457697 | P43: 0.9215879458 | Q43: 0.00137295941 | AO43: 0.5048396595 | AP43: 0.4568914467
A44: 25.5 | B44: 0.02488445162 | C44: 10.96607031 | D44: 4.153217268 | E44: 24.59678464 | F44: 0.6245662475 | G44: 0.02550949947 | H44: 0.598408241 | I44: 0.001938854624 | J44: 0.02466956429 | K44: 11.66866779 | L44: 3.397673245 | M44: 23.34956346 | N44: 0.9702378962 | O44: 0.02564265268 | P44: 0.909297662 | Q44: 0.001386271836 | AO44: 0.5073264971 | AP44: 0.4585387153
A45: 26 | B45: 0.02488644042 | C45: 10.96422812 | D45: 4.163260727 | E45: 24.60858185 | F45: 0.6145431715 | G45: 0.02548928331 | H45: 0.5896486191 | I45: 0.001964753325 | J45: 0.02467345515 | K45: 11.64994152 | L45: 3.408451594 | M45: 23.37166821 | N45: 0.9554794228 | O45: 0.02561258386 | P45: 0.8973226167 | Q45: 0.001399720291 | AO45: 0.5097926245 | AP45: 0.4601804716
A46: 26.5 | B46: 0.02488836505 | C46: 10.96261468 | D46: 4.173092307 | E46: 24.62000287 | F46: 0.6048556289 | G46: 0.02547019178 | H46: 0.5811437559 | I46: 0.001990743639 | J46: 0.02467727164 | K46: 11.63193886 | L46: 3.419060578 | M46: 23.39336737 | N46: 0.9411935313 | O46: 0.02558423541 | P46: 0.8856521383 | Q46: 0.001413295184 | AO46: 0.5122382771 | AP46: 0.4618163093
A47: 27 | B47: 0.02489022857 | C47: 10.96121718 | D47: 4.182720159 | E47: 24.63106548 | F47: 0.5954867817 | G47: 0.02545214362 | H47: 0.5728831727 | I47: 0.002016819029 | J47: 0.02468107032 | K47: 11.61486608 | L47: 3.429596546 | M47: 23.41498195 | N47: 0.9273510117 | O47: 0.02555753343 | P47: 0.874270179 | Q47: 0.001427026232 | AO47: 0.5146637016 | AP47: 0.4634507095
A48: 27.5 | B48: 0.02489203386 | C48: 10.96002369 | D48: 4.192151986 | E48: 24.64178642 | F48: 0.5864209054 | G48: 0.02543506479 | H48: 0.5648569141 | I48: 0.002042973504 | J48: 0.02468471798 | K48: 11.59807945 | L48: 3.439835568 | M48: 23.43575283 | N48: 0.9139469013 | O48: 0.02553224131 | P48: 0.8631813503 | Q48: 0.001440808226 | AO48: 0.5170691557 | AP48: 0.4650711502
A49: 28 | B49: 0.02489378364 | C49: 10.95902307 | D49: 4.201395072 | E49: 24.65218139 | F49: 0.5776432982 | G49: 0.02541888769 | H49: 0.5570555207 | I49: 0.002069201567 | J49: 0.02468828089 | K49: 11.58183642 | L49: 3.449890582 | M49: 23.456056 | N49: 0.9009533311 | O49: 0.02550831436 | P49: 0.8523690846 | Q49: 0.001454678754 | AO49: 0.5194549057 | AP49: 0.4666830917
A50: 28.5 | B50: 0.02489555908 | C50: 10.9587913 | D50: 4.210598825 | E50: 24.66273252 | F50: 0.5691287745 | G50: 0.02540362023 | H50: 0.5494593457 | I50: 0.002095649636 | J50: 0.02469176217 | K50: 11.56611208 | L50: 3.459767766 | M50: 23.47590816 | N50: 0.8883513656 | O50: 0.02548565913 | P50: 0.8418239954 | Q50: 0.001468631252 | AO50: 0.5218369373 | AP50: 0.468286372
A51: 29 | B51: 0.02489718298 | C51: 10.95798139 | D51: 4.219444765 | E51: 24.67238636 | F51: 0.560890607 | G51: 0.02538904675 | H51: 0.5420842324 | I51: 0.002121969083 | J51: 0.02469516477 | K51: 11.55088306 | L51: 3.469472997 | M51: 23.49532518 | N51: 0.8761232213 | O51: 0.02546418997 | P51: 0.8315370472 | Q51: 0.001482659698 | AO51: 0.5241797548 | AP51: 0.4698808609
A52: 29.5 | B52: 0.0248987383 | C52: 10.9571809 | D52: 4.228084127 | E52: 24.68163545 | F52: 0.5529047962 | G52: 0.02537518646 | H52: 0.5349109884 | I52: 0.002148306079 | J52: 0.0246984915 | K52: 11.53612742 | L52: 3.479011867 | M52: 23.51432213 | N52: 0.86425218 | O52: 0.02544382825 | P52: 0.8214995459 | Q52: 0.001496758555 | AO52: 0.5264994722 | AP52: 0.4714664563
A53: 30 | B53: 0.02490022829 | C53: 10.95638788 | D53: 4.236524398 | E53: 24.69049876 | F53: 0.5451597514 | G53: 0.02536199253 | H53: 0.5279316761 | I53: 0.002174656829 | J53: 0.02470174501 | K53: 11.52182454 | L53: 3.488389702 | M53: 23.53291337 | N53: 0.8527225106 | O53: 0.02542450171 | P53: 0.8117031289 | Q53: 0.001510922726 | AO53: 0.5287964855 | AP53: 0.4730430805
B54: Case 1 Surface | J54: Case 2 Surface
B55: GSD @ mean width | E55: For convenient local reference | J55: GSD @ mean width
B56: D (mm) | C56: Fi (%ft) | D56: =Qone -> 20 | J56: D (mm) | K56: Fi (%ft) | AO56: =Qone -> 20 | AP56: =Qtwo -> 35
B57: 45.254834 | C57: 100 | D57: =Qtwo -> 35 | J57: 45.254834 | K57: 100
B58: 32 | C58: 81.95240646 | D58: =QTone*2650*3600 -> 954 | J58: 32 | K58: 85.99380285
B59: 22.627417 | C59: 41.50282344 | D59: =QTtwo*2650*3600 -> 3816 | J59: 22.627417 | K59: 48.59694973
B60: 16 | C60: 22.80295384 | J60: 16 | K60: 29.54012702
B61: 11.3137085 | C61: 17.66879431 | J61: 11.3137085 | K61: 24.00775027
B62: 8 | C62: 14.81598265 | J62: 8 | K62: 20.78432367
B63: 5.656854249 | C63: 13.19886414 | J63: 5.656854249 | K63: 18.87400061
B64: 4 | C64: 11.9700382 | J64: 4 | K64: 17.35902312
B65: 2.828427125 | C65: 10.17762489 | J65: 2.828427125 | K65: 15.05603279
B66: 2 | C66: 8.279074608 | J66: 2 | K66: 12.51717191
B67: 1.414213562 | C67: 6.594714552 | J67: 1.414213562 | K67: 10.17605274
B68: 1 | C68: 5.344917274 | J68: 1 | K68: 8.37314162
B69: 0.5 | C69: 2.387746672 | J69: 0.5 | K69: 3.875482278
B70: 0.25 | C70: 0 | J70: 0.25 | K70: 0

Sheet STATE
A1: STATE DIAGRAM FOR GRAVEL-BED RIVERS WORKSHEET
A3: RULES, CONVENTIONS, AND UNITS
A4: 1. Cells for input data are highlighted in GREEN
A5: 2. LIGHT GREEN cells can be changed, but their default values are recommended
A6: 3. Grain-diameters must be in millimeters (mm)
A7: 4. Cumulative percentiles, not fractions, are used
A8: 5. Cumulative grain-size distribution percentiles must span from 0 to 100 %
A9: 6. The 0 and 100 % must be EXACTLY 0 and 100
A10: INSTRUCTIONS
A11: 1. In table below, enter grain size and cumulative % in order of decreasing grain size
A12: 2. Check input for errors, press Enter, and then click once on the Run STATE button
A13: 3. Plots will appear in the separate worksheets "STATE I OUTPUT" and "STATE II OUTPUT"
A15: D (mm) | B15: FIRST Transport CDF GSD (% Finer) | C15: SECOND Transport CDF GSD (% Finer) | E15: qT (m2/s) | F15: S (%/100) | H15: Statistic | I15: FIRST Transport GSD | J15: SECOND Transport GSD | K15: Units
A16: 128 | B16: 100 | C16: 100 | E16: 5e-09 | F16: 0.0001 | H16: Dmin | I16: 0.25 | J16: 0.25 | K16: mm
A17: 90 | B17: 100 | C17: 100 | E17: 1e-08 | F17: 0.0002 | H17: Dmax | I17: 128 | J17: 128 | K17: mm
A18: 64 | B18: 100 | C18: 100 | E18: 2e-08 | F18: 0.0005 | H18: D50 | I18: 6.697955365 | J18: 6.047898149 | K18: mm
A19: 45.25 | B19: 96.22 | C19: 96.22 | E19: 5e-08 | F19: 0.001 | H19: Dg | I19: 7.311052204 | J19: 5.81564617 | K19: mm
A20: 32 | B20: 90.93 | C20: 90.93 | E20: 1e-07 | F20: 0.002 | H20: sg | I20: 1.570892526 | J20: 1.751394853 | K20: f/y-units
A21: 22.63 | B21: 81.05 | C21: 81.05 | E21: 2e-07 | F21: 0.005 | H21: Fs | I21: 12 | J21: 27 | K21: %
A22: 16 | B22: 70.88 | C22: 70.88 | E22: 5e-07 | F22: 0.01
A23: 11.31 | B23: 64.38 | C23: 64.38 | E23: 1e-06 | F23: 0.02
A24: 8 | B24: 58.44 | C24: 58.44 | E24: 2e-06 | F24: 0.05
A25: 5.66 | B25: 42 | C25: 48 | E25: 5e-06 | F25: 0.1
A26: 4 | B26: 28 | C26: 34 | E26: 1e-05
A27: 2.83 | B27: 18 | C27: 30 | E27: 2e-05
A28: 2 | B28: 12 | C28: 27 | E28: 5e-05
A29: 1.4 | B29: 8 | C29: 23 | E29: 0.0001
A30: 1 | B30: 4 | C30: 18 | E30: 0.0002
A31: 0.707 | B31: 2 | C31: 12 | E31: 0.0005
A32: 0.5 | B32: 0 | C32: 8 | E32: 0.001
A33: 0.35 | C33: 3 | E33: 0.002
A34: 0.25 | C34: 0 | E34: 0.005
E35: 0.01
E36: 0.02
E37: 0.05
A49: PLOT DATA
A50: D (mm) | B50: GSD 1 Mean & STD
A51: =2^((LOG(I19)/LOG(2))-I20) -> 2.460900841 | B51: 16
A52: =I19 -> 7.311052204 | B52: 50
A53: =2^((LOG(I19)/LOG(2))+I20) -> 21.72029179 | B53: 84
A54: D (mm) | B54: GSD 2 Mean & STD
A55: =2^((LOG(J19)/LOG(2))-J20) -> 1.727331094 | B55: 16
A56: =J19 -> 5.81564617 | B56: 50
A57: =2^((LOG(J19)/LOG(2))+J20) -> 19.58034595 | B57: 84

Sheet STATE I OUTPUT
A1: State diagram developed using inverse calculation of the Wilcock & Crowe (2003) transport relation.
A2: 1. DIMENSIONLESS STATE DIAGRAM
A34: 2. DIMENSIONED STATE DIAGRAM | E34: òòòòò | F34: òòòòò | G34: òòòòò | H34: òòòòò | I34: òòòòò | J34: òòòòò | K34: òòòòò | L34: òòòòò | M34: òòòòò | N34: òòòòò | O34: òòòòò | P34: òòòòò

Sheet STATE II OUTPUT
A1: State diagram developed using inverse calculation of the Wilcock & Crowe (2003) transport relation.
A2: 1. DIMENSIONLESS SLOPE/TRANSPORT STATE DIAGRAM | R2: 3. Tramsport rate for q*t = 0.01 and 0.1
A34: 2. DIMENSIONED SLOPE/TRANSPORT STATE DIAGRAM | G34: òòòòò | H34: òòòòò | I34: òòòòò | J34: òòòòò | K34: òòòòò | L34: òòòòò | M34: òòòòò | N34: òòòòò | O34: òòòòò | P34: òòòòò

Sheet STATE plot DATA (hidden)
A1: DIMENSIONLESS STANDARD STATE DIAGRAM FIRST GSD RESULTS | M1: GAMMAS
A2: S=0.0001 | B2: S=0.0002 | C2: S=0.0005 | D2: S=0.001 | E2: S=0.002 | F2: S=0.005 | G2: S=0.01 | H2: S=0.02 | I2: S=0.05 | J2: S=0.1 | K2: q*T | M2: q*W | N2: G1=3.85,G2=4.94 | O2: G1=3.85,G2=4.94 | P2: G1=3.85,G2=4.94 | Q2: G1=3.85,G2=4.94 | R2: G1=3.85,G2=4.94 | S2: G1=3.85,G2=4.93 | T2: G1=3.84,G2=4.92 | U2: G1=3.82,G2=4.88 | V2: G1=3.75,G2=4.8 | W2: G1=3.56,G2=4.56 | X2: G1=3.34,G2=4.27 | Y2: G1=3.06,G2=3.89 | Z2: G1=2.64,G2=3.32 | AA2: G1=2.34,G2=2.9 | AB2: G1=2.08,G2=2.53 | AC2: G1=1.79,G2=2.11 | AD2: G1=1.62,G2=1.86 | AE2: G1=1.48,G2=1.65 | AF2: G1=1.34,G2=1.44 | AG2: G1=1.27,G2=1.33 | AH2: G1=1.21,G2=1.24 | AI2: G1=1.15,G2=1.15
A3: 6534.122912 | B3: 2910.620863 | C3: 999.360764 | D3: 445.1646118 | E3: 198.298291 | F3: 68.08565627 | G3: 30.32871195 | H3: 13.5099053 | I3: 4.638621763 | J3: 2.066271091 | K3: 1.988033513e-06 | M3: 2.066271091 | N3: 1.988033513e-06 | O3: 3.976067025e-06 | P3: 7.952134051e-06 | Q3: 1.988033513e-05 | R3: 3.976067025e-05 | S3: 7.952134051e-05 | T3: 0.0001988033513 | U3: 0.0003976067025 | V3: 0.0007952134051 | W3: 0.001988033513 | X3: 0.003976067025 | Y3: 0.007952134051 | Z3: 0.01988033513 | AA3: 0.03976067025 | AB3: 0.07952134051 | AC3: 0.1988033513 | AD3: 0.3976067025 | AE3: 0.7952134051 | AF3: 1.988033513 | AG3: 3.976067025 | AH3: 7.952134051 | AI3: 19.88033513
A4: 7429.055368 | B4: 3309.267952 | C4: 1136.236118 | D4: 506.1356503 | E4: 225.457801 | F4: 77.41086554 | G4: 34.48262044 | H4: 15.36026117 | I4: 5.273940875 | J4: 2.349273583 | K4: 3.976067025e-06 | M4: 1602151.786 | N4: 1.988033513e-06 | O4: 3.976067025e-06 | P4: 7.952134051e-06 | Q4: 1.988033513e-05 | R4: 3.976067025e-05 | S4: 7.952134051e-05 | T4: 0.0001988033513 | U4: 0.0003976067025 | V4: 0.0007952134051 | W4: 0.001988033513 | X4: 0.003976067025 | Y4: 0.007952134051 | Z4: 0.01988033513 | AA4: 0.03976067025 | AB4: 0.07952134051 | AC4: 0.1988033513 | AD4: 0.3976067025 | AE4: 0.7952134051 | AF4: 1.988033513 | AG4: 3.976067025 | AH4: 7.952134051 | AI4: 19.88033513
A5: 8446.560374 | B5: 3762.514905 | C5: 1291.858317 | D5: 575.4574593 | E5: 256.3371564 | F5: 88.01328258 | G5: 39.20546031 | H5: 17.46404717 | I5: 5.996275139 | J5: 2.671036918 | K5: 7.952134051e-06
A6: 10008.58046 | B6: 4458.315751 | C6: 1530.76132 | D6: 681.8766489 | E6: 303.7415162 | F6: 104.2895547 | G6: 46.4557153 | H6: 20.69366861 | I6: 7.10516465 | J6: 3.16499104 | K6: 1.988033513e-05
A7: 11378.33488 | B7: 5068.471978 | C7: 1740.25827 | D7: 775.196931 | E7: 345.3109761 | F7: 118.5624157 | G7: 52.8135521 | H7: 23.52576293 | I7: 8.077563353 | J7: 3.598145419 | K7: 3.976067025e-05
A8: 12915.3425 | B8: 5753.131039 | C8: 1975.335745 | D8: 879.9120414 | E8: 391.9562549 | F8: 134.5780577 | G8: 59.94770953 | H8: 26.70366879 | I8: 9.168696335 | J8: 4.084189906 | K8: 7.952134051e-05
A9: 15106.10252 | B9: 6729.003688 | C9: 2310.401314 | D9: 1029.166784 | E9: 458.4416845 | F9: 157.4058091 | G9: 70.1163168 | H9: 31.23326838 | I9: 10.72393294 | J9: 4.776969055 | K9: 0.0001988033513
A10: 16783.91223 | B10: 7476.382945 | C10: 2567.013748 | D10: 1143.474629 | E10: 509.3600406 | F10: 174.8886108 | G10: 77.90401959 | H10: 34.70229559 | I10: 11.91502235 | J10: 5.307539069 | K10: 0.0003976067025
A11: 18361.48425 | B11: 8179.111389 | C11: 2808.29534 | D11: 1250.953359 | E11: 557.2363721 | F11: 191.3269343 | G11: 85.22646024 | H11: 37.96407209 | I11: 13.03495229 | J11: 5.806411144 | K11: 0.0007952134051
A12: 20183.97966 | B12: 8990.940805 | C12: 3087.036716 | D12: 1375.118527 | E12: 612.5456664 | F12: 210.3173632 | G12: 93.68573463 | H12: 41.73225044 | I12: 14.32875515 | J12: 6.382734799 | K12: 0.001988033513
A13: 21515.71992 | B13: 9584.163648 | C13: 3290.719594 | D13: 1465.848934 | E13: 652.9614682 | F13: 224.1941161 | G13: 99.86712533 | H13: 44.48574697 | I13: 15.27416732 | J13: 6.803868045 | K13: 0.003976067025
A14: 23141.39163 | B14: 10308.31807 | C14: 3539.357789 | D14: 1576.604658 | E14: 702.2975346 | F14: 241.1336391 | G14: 107.412825 | H14: 47.84697405 | I14: 16.42824359 | J14: 7.317950578 | K14: 0.007952134051
A15: 26293.00329 | B15: 11712.20146 | C15: 4021.380713 | D15: 1791.321461 | E15: 797.9429968 | F15: 273.9734786 | G15: 122.0413105 | H15: 54.36322353 | I15: 18.66559581 | J15: 8.314577692 | K15: 0.01988033513
A16: 30501.00994 | B16: 13586.65533 | C16: 4664.973863 | D16: 2078.009617 | E16: 925.6480521 | F16: 317.8209695 | G16: 141.5731472 | H16: 63.06366766 | I16: 21.65289059 | J16: 9.645266235 | K16: 0.03976067025
A17: 37507.04127 | B17: 16707.48749 | C17: 5736.510611 | D17: 2555.324975 | E17: 1138.267872 | F17: 390.8239183 | G17: 174.0922639 | H17: 77.54928739 | I17: 26.6265236 | J17: 11.86076787 | K17: 0.07952134051
A18: 54338.1626 | B18: 24204.8997 | C18: 8310.744751 | D18: 3702.015923 | E18: 1649.06062 | F18: 566.2044487 | G18: 252.2154088 | H18: 112.3491922 | I18: 38.57506004 | J18: 17.18323577 | K18: 0.1988033513
A19: 77953.20458 | B19: 34724.20502 | C19: 11922.54494 | D19: 5310.890004 | E19: 2365.732548 | F19: 812.2735314 | G19: 361.8267239 | H19: 161.1754823 | I19: 55.33955148 | J19: 24.65096774 | K19: 0.3976067025
A20: 119696.0463 | B20: 53318.52711 | C20: 18306.89963 | D20: 8154.796705 | E20: 3632.548966 | F20: 1247.234552 | G20: 555.579832 | H20: 247.4826801 | I20: 84.97310088 | J20: 37.85121333 | K20: 0.7952134051
A21: 229964.9926 | B21: 102437.7586 | C21: 35171.9724 | D21: 15667.33256 | E21: 6979.003249 | F21: 2396.238585 | G21: 1067.402942 | H21: 475.4739564 | I21: 163.2538344 | J21: 72.72131588 | K21: 1.988033513
A22: 397777.1399 | B22: 177189.572 | C22: 60837.98419 | D22: 27100.24107 | E22: 12071.78501 | F22: 4144.843613 | G22: 1846.317931 | H22: 822.4411389 | I22: 282.3849081 | J22: 125.7881763 | K22: 3.976067025
A23: 709781.4123 | B23: 316171.6752 | C23: 108557.4459 | D23: 48356.8447 | E23: 21540.52548 | F23: 7395.932693 | G23: 3294.513478 | H23: 1467.538917 | I23: 503.8790287 | J23: 224.4525904 | K23: 7.952134051
A24: 1602151.786 | B24: 713677.4863 | C24: 245040.942 | D24: 109153.3305 | E24: 48622.28113 | F24: 16694.44504 | G24: 7436.529841 | H24: 3312.597451 | I24: 1137.3793 | J24: 506.6448802 | K24: 19.88033513
A26: DIMENSIONLESS STANDARD STATE DIAGRAM SECOND GSD RESULTS
A27: S=0.0001 | B27: S=0.0002 | C27: S=0.0005 | D27: S=0.001 | E27: S=0.002 | F27: S=0.005 | G27: S=0.01 | H27: S=0.02 | I27: S=0.05 | J27: S=0.1 | K27: q*T
A28: 8126.086652 | B28: 3619.760091 | C28: 1242.843496 | D28: 553.6238389 | E28: 246.6113842 | F28: 84.67394171 | G28: 37.71795307 | H28: 16.80143802 | I28: 5.768768495 | J28: 2.569694229 | K28: 1.988033513e-06
A29: 9239.059087 | B29: 4115.532949 | C29: 1413.066952 | D29: 629.4497682 | E29: 280.3879958 | F29: 96.27113076 | G29: 42.88391349 | H29: 19.10261178 | I29: 6.558875786 | J29: 2.921647015 | K29: 3.976067025e-06
A30: 10504.46746 | B30: 4679.208298 | C30: 1606.604707 | D30: 715.661037 | E30: 318.7907503 | F30: 109.4567045 | G30: 48.75741887 | H30: 21.71896098 | I30: 7.457198468 | J30: 3.321804278 | K30: 7.952134051e-06
A31: 12447.09777 | B31: 5544.551725 | C31: 1903.720102 | D31: 848.0108995 | E31: 377.7459117 | F31: 129.6989407 | G31: 57.77431003 | H31: 25.73552937 | I31: 8.83628597 | J31: 3.936117922 | K31: 1.988033513e-05
A32: 14144.24065 | B32: 6300.542932 | C32: 2163.289447 | D32: 963.6358978 | E32: 429.250993 | F32: 147.3831943 | G32: 65.65174946 | H32: 29.24452972 | I32: 10.04110014 | J32: 4.472801623 | K32: 3.976067025e-05
A33: 16022.66764 | B33: 7137.287033 | C33: 2450.585273 | D33: 1091.611639 | E33: 486.257705 | F33: 166.9564311 | G33: 74.37063523 | H33: 33.12835179 | I33: 11.37460924 | J33: 5.066812395 | K33: 7.952134051e-05
A34: 18609.50696 | B34: 8289.592949 | C34: 2846.229149 | D34: 1267.85095 | E34: 564.7633932 | F34: 193.9113346 | G34: 86.37767972 | H34: 38.47688207 | I34: 13.21102544 | J34: 5.884842813 | K34: 0.0001988033513
A35: 20444.33734 | B35: 9106.916964 | C35: 3126.857094 | D35: 1392.856489 | E35: 620.4470301 | F35: 213.0302939 | G35: 94.8942079 | H35: 42.27056409 | I35: 14.51358497 | J35: 6.465067124 | K35: 0.0003976067025
A36: 21990.31699 | B36: 9795.572608 | C36: 3363.306795 | D36: 1498.182856 | E36: 667.364593 | F36: 229.1394245 | G36: 102.0700098 | H36: 45.46702044 | I36: 15.61108726 | J36: 6.953948815 | K36: 0.0007952134051
A37: 23352.5566 | B37: 10402.38137 | C37: 3571.654394 | D37: 1590.99116 | E37: 708.7059927 | F37: 243.3339812 | G37: 108.392966 | H37: 48.28357721 | I37: 16.57815115 | J37: 7.384726805 | K37: 0.001988033513
A38: 24061.74869 | B38: 10718.29053 | C38: 3680.121705 | D38: 1639.307855 | E38: 730.2286333 | F38: 250.7237731 | G38: 111.684744 | H38: 49.74989764 | I38: 17.08161181 | J38: 7.608993034 | K38: 0.003976067025
A39: 25021.69187 | B39: 11145.8966 | C39: 3826.940117 | D39: 1704.708022 | E39: 759.3610959 | F39: 260.726395 | G39: 116.1404056 | H39: 51.73466922 | I39: 17.76308251 | J39: 7.912553721 | K39: 0.007952134051
A40: 27485.01405 | B40: 12243.18189 | C40: 4203.692678 | D40: 1872.532209 | E40: 834.1182723 | F40: 286.3942482 | G40: 127.5741343 | H40: 56.82781636 | I40: 19.51181299 | J40: 8.691524592 | K40: 0.01988033513
A41: 31358.19146 | B41: 13968.48629 | C41: 4796.075402 | D41: 2136.408714 | E41: 951.6618924 | F41: 326.7528134 | G41: 145.5518313 | H41: 64.83596997 | I41: 22.26141003 | J41: 9.916330831 | K41: 0.03976067025
A42: 38012.80728 | B42: 16932.78064 | C42: 5813.864943 | D42: 2589.782413 | E42: 1153.616916 | F42: 396.0940076 | G42: 176.4398218 | H42: 78.59500555 | I42: 26.9855706 | J42: 12.02070513 | K42: 0.07952134051
A43: 54217.03453 | B43: 24150.94328 | C43: 8292.21883 | D43: 3693.763563 | E43: 1645.384612 | F43: 564.9422924 | G43: 251.653182 | H43: 112.0987487 | I43: 38.48907033 | J43: 17.14493171 | K43: 0.1988033513
A44: 76435.90663 | B44: 34048.32562 | C44: 11690.48196 | D44: 5207.517698 | E44: 2319.685421 | F44: 796.4632645 | G44: 354.7840507 | H44: 158.038328 | I44: 54.26241054 | J44: 24.171156 | K44: 0.3976067025
A45: 115565.707 | B45: 51478.67011 | C45: 17675.1853 | D45: 7873.399962 | E45: 3507.200967 | F45: 1204.196356 | G45: 536.4084951 | H45: 238.9428203 | I45: 82.04094271 | J45: 36.54508535 | K45: 0.7952134051
A46: 219622.5724 | B46: 97830.73412 | C46: 33590.152 | D46: 14962.71168 | E46: 6665.130327 | F46: 2288.470415 | G46: 1019.39768 | H46: 454.0900431 | I46: 155.9116744 | J46: 69.45075544 | K46: 1.988033513
A47: 379026.8157 | B47: 168837.2521 | C47: 57970.21777 | D47: 25822.79635 | E47: 11502.74808 | F47: 3949.464961 | G47: 1759.286635 | H47: 783.6731041 | I47: 269.0739155 | J47: 119.8588032 | K47: 3.976067025
A48: 680897.8044 | B48: 303305.4906 | C48: 104139.8454 | D48: 46389.0274 | E48: 20663.96252 | F48: 7094.965076 | G48: 3160.447646 | H48: 1407.819378 | I48: 483.3743437 | J48: 215.3187916 | K48: 7.952134051
A49: 1545018.413 | B49: 688227.4618 | C49: 236302.684 | D49: 105260.8791 | E49: 46888.39114 | F49: 16099.11445 | G49: 7171.340213 | H49: 3194.468902 | I49: 1096.819899 | J49: 488.5777212 | K49: 19.88033513
A55: DIMENSIONLESS ALTERNATIVE STATE DIAGRAM FIRST GSD RESULTS | M55: GAMMAS
A56: q*W=10 | B56: q*W=32 | C56: q*W=100 | D56: q*W=316 | E56: q*W=1000 | F56: q*W=3162 | G56: q*W=10000 | H56: q*W=31623 | I56: q*W=100000 | J56: q*W=316228 | K56: q*T | M56: S | N56: =N2 -> G1=3.85,G2=4.94 | O56: =O2 -> G1=3.85,G2=4.94 | P56: G1=3.85,G2=4.94 | Q56: G1=3.85,G2=4.94 | R56: G1=3.85,G2=4.94 | S56: G1=3.85,G2=4.93 | T56: G1=3.84,G2=4.92 | U56: G1=3.82,G2=4.88 | V56: G1=3.75,G2=4.8 | W56: G1=3.56,G2=4.56 | X56: G1=3.34,G2=4.27 | Y56: G1=3.06,G2=3.89 | Z56: G1=2.64,G2=3.32 | AA56: G1=2.34,G2=2.9 | AB56: G1=2.08,G2=2.53 | AC56: G1=1.79,G2=2.11 | AD56: G1=1.62,G2=1.86 | AE56: G1=1.48,G2=1.65 | AF56: G1=1.34,G2=1.44 | AG56: G1=1.27,G2=1.33 | AH56: G1=1.21,G2=1.24 | AI56: G1=1.15,G2=1.15
A57: 0.02702876638 | B57: 0.01007522598 | C57: 0.00375563491 | D57: 0.001399948111 | E57: 0.0005218437786 | F57: 0.0001945221592 | G57: 7.250995791e-05 | H57: 2.702876638e-05 | I57: 1.007522598e-05 | J57: 3.75563491e-06 | K57: 1.988033513e-06 | M57: 0.0001 | N57: =N3 -> 1.988033513e-06 | O57: 3.976067025e-06 | P57: 7.952134051e-06 | Q57: 1.988033513e-05 | R57: 3.976067025e-05 | S57: 7.952134051e-05 | T57: 0.0001988033513 | U57: 0.0003976067025 | V57: 0.0007952134051 | W57: 0.001988033513 | X57: 0.003976067025 | Y57: 0.007952134051 | Z57: 0.01988033513 | AA57: 0.03976067025 | AB57: 0.07952134051 | AC57: 0.1988033513 | AD57: 0.3976067025 | AE57: 0.7952134051 | AF57: 1.988033513 | AG57: 3.976067025 | AH57: 7.952134051 | AI57: 19.88033513
A58: 0.03017232405 | B58: 0.01124701657 | C58: 0.004192430833 | D58: 0.001562767885 | E58: 0.0005825363753 | F58: 0.0002171458934 | G58: 8.094316687e-05 | H58: 3.017232405e-05 | I58: 1.124701657e-05 | J58: 4.192430833e-06 | K58: 3.976067025e-06 | M58: 0.1 | N58: 1.988033513e-06 | O58: 3.976067025e-06 | P58: 7.952134051e-06 | Q58: 1.988033513e-05 | R58: 3.976067025e-05 | S58: 7.952134051e-05 | T58: 0.0001988033513 | U58: 0.0003976067025 | V58: 0.0007952134051 | W58: 0.001988033513 | X58: 0.003976067025 | Y58: 0.007952134051 | Z58: 0.01988033513 | AA58: 0.03976067025 | AB58: 0.07952134051 | AC58: 0.1988033513 | AD58: 0.3976067025 | AE58: 0.7952134051 | AF58: 1.988033513 | AG58: 3.976067025 | AH58: 7.952134051 | AI58: 19.88033513
A59: 0.03368149053 | B59: 0.01255509126 | C59: 0.004680027934 | D59: 0.001744524274 | E59: 0.0006502877728 | F59: 0.0002424008618 | G59: 9.035719303e-05 | H59: 3.368149053e-05 | I59: 1.255509126e-05 | J59: 4.680027934e-06 | K59: 7.952134051e-06
A60: 0.03895438778 | B60: 0.01452061313 | C60: 0.00541269463 | D60: 0.002017632651 | E60: 0.0007520914801 | F60: 0.0002803491478 | G60: 0.0001045027723 | H60: 3.895438778e-05 | I60: 1.452061313e-05 | J60: 5.41269463e-06 | K60: 1.988033513e-05
A61: 0.04348167666 | B61: 0.01620820249 | C61: 0.00604175938 | D61: 0.002252122433 | E61: 0.0008394997437 | F61: 0.0003129313973 | G61: 0.0001166481111 | H61: 4.348167666e-05 | I61: 1.620820249e-05 | J61: 6.04175938e-06 | K61: 3.976067025e-05
A62: 0.04847311319 | B62: 0.01806880723 | C62: 0.006735317237 | D62: 0.002510652624 | E62: 0.0009358692954 | F62: 0.0003488540509 | G62: 0.0001300386169 | H62: 4.847311319e-05 | I62: 1.806880723e-05 | J62: 6.735317237e-06 | K62: 7.952134051e-05
A63: 0.05546957484 | B63: 0.02067680388 | C63: 0.007707472432 | D63: 0.002873032584 | E63: 0.001070949822 | F63: 0.000399206583 | G63: 0.0001488079952 | H63: 5.546957484e-05 | I63: 2.067680388e-05 | J63: 7.707472432e-06 | K63: 0.0001988033513
A64: 0.0608012529 | B64: 0.02266423685 | C64: 0.008448306695 | D64: 0.003149185498 | E64: 0.001173888409 | F64: 0.0004375779061 | G64: 0.0001631112655 | H64: 6.08012529e-05 | I64: 2.266423685e-05 | J64: 8.448306695e-06 | K64: 0.0003976067025
A65: 0.06590007583 | B65: 0.02456487088 | C65: 0.009156785844 | D65: 0.003413277741 | E65: 0.001272331267 | F65: 0.0004742734042 | G65: 0.0001767898563 | H65: 6.590007583e-05 | I65: 2.456487088e-05 | J65: 9.156785844e-06 | K65: 0.0007952134051
A66: 0.07200285378 | B66: 0.02683973856 | C66: 0.01000476409 | D66: 0.00372936958 | E66: 0.001390157463 | F66: 0.0005181942228 | G66: 0.0001931617531 | H66: 7.200285378e-05 | I66: 2.683973856e-05 | J66: 1.000476409e-05 | K66: 0.001988033513
A67: 0.0763870465 | B67: 0.02847398749 | C67: 0.01061394569 | D67: 0.003956447732 | E67: 0.001474802972 | F67: 0.0005497466297 | G67: 0.0002049232085 | H67: 7.63870465e-05 | I67: 2.847398749e-05 | J67: 1.061394569e-05 | K67: 0.003976067025
A68: 0.0813080872 | B68: 0.03030835153 | C68: 0.01129772208 | D68: 0.004211331789 | E68: 0.001569813393 | F68: 0.0005851626546 | G68: 0.0002181248637 | H68: 8.13080872e-05 | I68: 3.030835153e-05 | J68: 1.129772208e-05 | K68: 0.007952134051
A69: 0.09020168378 | B69: 0.033623523 | C69: 0.01253348332 | D69: 0.004671973372 | E69: 0.00174152186 | F69: 0.000649168595 | G69: 0.0002419836778 | H69: 9.020168378e-05 | I69: 3.3623523e-05 | J69: 1.253348332e-05 | K69: 0.01988033513
A70: 0.1020652774 | B70: 0.03804578872 | C70: 0.01418192431 | D70: 0.0052864452 | E70: 0.001970571993 | F70: 0.0007345491787 | G70: 0.0002738100906 | H70: 0.0001020652774 | I70: 3.804578872e-05 | J70: 1.418192431e-05 | K70: 0.03976067025
A71: 0.121280937 | B71: 0.04520860591 | C71: 0.01685193155 | D71: 0.006281715422 | E71: 0.002341568296 | F71: 0.0008728415276 | G71: 0.0003253598597 | H71: 0.000121280937 | I71: 4.520860591e-05 | J71: 1.685193155e-05 | K71: 0.07952134051
A72: 0.165336282 | B72: 0.06163064864 | C72: 0.02297340188 | D72: 0.00856355086 | E72: 0.003192143841 | F72: 0.001189901534 | G72: 0.0004435469484 | H72: 0.000165336282 | I72: 6.163064864e-05 | J72: 2.297340188e-05 | K72: 0.1988033513
A73: 0.2229083706 | B73: 0.08309118426 | C73: 0.03097301767 | D73: 0.01154548261 | E73: 0.004303686849 | F73: 0.001604239607 | G73: 0.0005979953486 | H73: 0.0002229083706 | I73: 8.309118426e-05 | J73: 3.097301767e-05 | K73: 0.3976067025
A74: 0.3171595766 | B74: 0.1182242046 | C74: 0.04406918027 | D74: 0.01642719996 | E74: 0.006123392742 | F74: 0.002282552033 | G74: 0.0008508426626 | H74: 0.0003171595766 | I74: 0.0001182242046 | J74: 4.406918027e-05 | K74: 0.7952134051
A75: 0.5448753338 | B75: 0.2031073873 | C75: 0.07571018213 | D75: 0.02822167995 | E75: 0.01051989569 | F75: 0.003921389713 | G75: 0.001461734767 | H75: 0.0005448753338 | I75: 0.0002031073873 | J75: 7.571018213e-05 | K75: 1.988033513
A76: 0.8619103119 | B76: 0.3212851466 | C76: 0.1197620495 | D76: 0.04464242636 | E76: 0.01664088282 | F76: 0.006203045029 | G76: 0.00231224317 | H76: 0.0008619103119 | I76: 0.0003212851466 | J76: 0.0001197620495 | K76: 3.976067025
A77: 1.413084796 | B77: 0.5267406012 | C77: 0.1963474957 | D77: 0.07319036921 | E77: 0.02728239606 | F77: 0.01016976882 | G77: 0.003790876641 | H77: 0.001413084796 | I77: 0.0005267406012 | J77: 0.0001963474957 | K77: 7.952134051
A78: 2.843025071 | B78: 1.05976424 | C78: 0.3950370527 | D78: 0.1472537637 | E78: 0.05489022048 | F78: 0.02046084412 | G78: 0.007626971404 | H78: 0.002843025071 | I78: 0.00105976424 | J78: 0.0003950370527 | K78: 19.88033513
A80: DIMENSIONLESS ALTERNATIVE STATE DIAGRAM SECOND GSD RESULTS
A81: q*W=10 | B81: q*W=32 | C81: q*W=100 | D81: q*W=316 | E81: q*W=1000 | F81: q*W=3162 | G81: q*W=10000 | H81: q*W=31623 | I81: q*W=100000 | J81: q*W=316228 | K81: q*T
A82: 0.03251170025 | B82: 0.01211904097 | C82: 0.004517486101 | D82: 0.001683935282 | E82: 0.0006277026583 | F82: 0.0002339820487 | G82: 8.721900155e-05 | H82: 3.251170025e-05 | I82: 1.211904097e-05 | J82: 4.517486101e-06 | K82: 1.988033513e-06
A83: 0.03629294588 | B83: 0.01352853572 | C83: 0.005042888478 | D83: 0.001879783942 | E83: 0.0007007070819 | F83: 0.0002611951318 | G83: 9.736293332e-05 | H83: 3.629294588e-05 | I83: 1.352853572e-05 | J83: 5.042888478e-06 | K83: 3.976067025e-06
A84: 0.04051396608 | B84: 0.01510196055 | C84: 0.005629397332 | D84: 0.002098410615 | E84: 0.0007822022229 | F84: 0.0002915732094 | G84: 0.0001086866464 | H84: 4.051396608e-05 | I84: 1.510196055e-05 | J84: 5.629397332e-06 | K84: 7.952134051e-06
A85: 0.04685662611 | B85: 0.01746624652 | C85: 0.006510707086 | D85: 0.002426927085 | E85: 0.0009046598161 | F85: 0.0003372204249 | G85: 0.0001257020738 | H85: 4.685662611e-05 | I85: 1.746624652e-05 | J85: 6.510707086e-06 | K85: 1.988033513e-05
A86: 0.0522835882 | B86: 0.0194891975 | C86: 0.007264781023 | D86: 0.002708015212 | E86: 0.00100943805 | F86: 0.0003762774936 | G86: 0.0001402609622 | H86: 5.22835882e-05 | I86: 1.94891975e-05 | J86: 7.264781023e-06 | K86: 3.976067025e-05
A87: 0.05819249413 | B87: 0.02169179757 | C87: 0.00808582084 | D87: 0.003014065499 | E87: 0.001123521163 | F87: 0.000418803043 | G87: 0.0001561127593 | H87: 5.819249413e-05 | I87: 2.169179757e-05 | J87: 8.08582084e-06 | K87: 7.952134051e-05
A88: 0.06622042325 | B88: 0.02468428339 | C88: 0.009201297974 | D88: 0.003429870055 | E88: 0.001278516208 | F88: 0.0004765788987 | G88: 0.000177649251 | H88: 6.622042325e-05 | I88: 2.468428339e-05 | J88: 9.201297974e-06 | K88: 0.0001988033513
A89: 0.07190506458 | B89: 0.02680328672 | C89: 0.009991176325 | D89: 0.003724304613 | E89: 0.001388269449 | F89: 0.0005174904479 | G89: 0.0001928994144 | H89: 7.190506458e-05 | I89: 2.680328672e-05 | J89: 9.991176325e-06 | K89: 0.0003976067025
A90: 0.07682986492 | B90: 0.0286390522 | C90: 0.01067547511 | D90: 0.003979383399 | E90: 0.001483352457 | F90: 0.0005529335304 | G90: 0.0002061111556 | H90: 7.682986492e-05 | I90: 2.86390522e-05 | J90: 1.067547511e-05 | K90: 0.0007952134051
A91: 0.08164364005 | B91: 0.030433432 | C91: 0.011344347 | D91: 0.004228711664 | E91: 0.001576291904 | F91: 0.0005875775804 | G91: 0.0002190250499 | H91: 8.164364005e-05 | I91: 3.0433432e-05 | J91: 1.1344347e-05 | K91: 0.001988033513
A92: 0.08443150765 | B92: 0.03147263577 | C92: 0.01173171995 | D92: 0.00437310856 | E92: 0.001630117201 | F92: 0.000607641464 | G92: 0.0002265040506 | H92: 8.443150765e-05 | I92: 3.147263577e-05 | J92: 1.173171995e-05 | K92: 0.003976067025
A93: 0.08772526955 | B93: 0.03270041639 | C93: 0.01218938668 | D93: 0.004543708124 | E93: 0.001693709787 | F93: 0.0006313461966 | G93: 0.0002353402118 | H93: 8.772526955e-05 | I93: 3.270041639e-05 | J93: 1.218938668e-05 | K93: 0.007952134051
A94: 0.09510661664 | B94: 0.03545188269 | C94: 0.01321502153 | D94: 0.004926023127 | E94: 0.001836221287 | F94: 0.000684468694 | G94: 0.0002551421206 | H94: 9.510661664e-05 | I94: 3.545188269e-05 | J94: 1.321502153e-05 | K94: 0.01988033513
A95: 0.1063769526 | B95: 0.03965300605 | C95: 0.01478102963 | D95: 0.005509767324 | E95: 0.002053817408 | F95: 0.0007655796872 | G95: 0.0002853770034 | H95: 0.0001063769526 | I95: 3.965300605e-05 | J95: 1.478102963e-05 | K95: 0.03976067025
A96: 0.1255120067 | B96: 0.0467857768 | C96: 0.01743983678 | D96: 0.006500862606 | E96: 0.002423257463 | F96: 0.0009032919301 | G96: 0.0003367105326 | H96: 0.0001255120067 | I96: 4.67857768e-05 | J96: 1.743983678e-05 | K96: 0.07952134051
A97: 0.1697596147 | B97: 0.06327948736 | C97: 0.02358802197 | D97: 0.008792656257 | E97: 0.003277545025 | F97: 0.001221735625 | G97: 0.0004554134045 | H97: 0.0001697596147 | I97: 6.327948736e-05 | J97: 2.358802197e-05 | K97: 0.1988033513
A98: 0.2274910341 | B98: 0.08479941503 | C98: 0.03160977669 | D98: 0.01178284051 | E98: 0.00439216423 | F98: 0.00163722038 | G98: 0.0006102892407 | H98: 0.0002274910341 | I98: 8.479941503e-05 | J98: 3.160977669e-05 | K98: 0.3976067025
A99: 0.3218827115 | B99: 0.1199847974 | C99: 0.04472545774 | D99: 0.01667183354 | E99: 0.006214582201 | F99: 0.002316543759 | G99: 0.0008635133968 | H99: 0.0003218827115 | I99: 0.0001199847974 | J99: 4.472545774e-05 | K99: 0.7952134051
A100: 0.5498562424 | B100: 0.2049640676 | C100: 0.07640227713 | D100: 0.02847966485 | E100: 0.01061606198 | F100: 0.003957236599 | G100: 0.001475097029 | H100: 0.0005498562424 | I100: 0.0002049640676 | J100: 7.640227713e-05 | K100: 1.988033513
A101: 0.8673534067 | B101: 0.3233141112 | C101: 0.1205183651 | D101: 0.04492435008 | E101: 0.01674597252 | F101: 0.006242218202 | G101: 0.002326845337 | H101: 0.0008673534067 | I101: 0.0003233141112 | J101: 0.0001205183651 | K101: 3.976067025
A102: 1.419701705 | B102: 0.5292071162 | C102: 0.1972669123 | D102: 0.07353309036 | E102: 0.02741014858 | F102: 0.01021738977 | G102: 0.003808627796 | H102: 0.001419701705 | I102: 0.0005292071162 | J102: 0.0001972669123 | K102: 7.952134051
A103: 2.854241467 | B103: 1.063945257 | C103: 0.3965955658 | D103: 0.1478347141 | E103: 0.05510677518 | F103: 0.02054156691 | G103: 0.007657061582 | H103: 0.002854241467 | I103: 0.001063945257 | J103: 0.0003965955658 | K103: 19.88033513
A109: DIMENSIONED STANDARD STATE DIAGRAM FIRST GSD RESULTS | M109: GAMMAS
A110: S=0.0001 | B110: S=0.0002 | C110: S=0.0005 | D110: S=0.001 | E110: S=0.002 | F110: S=0.005 | G110: S=0.01 | H110: S=0.02 | I110: S=0.05 | J110: S=0.1 | K110: qT (kg/m-s) | M110: qW (m2/s) | N110: G1=3.85,G2=4.94 | O110: G1=3.85,G2=4.94 | P110: G1=3.85,G2=4.94 | Q110: G1=3.85,G2=4.94 | R110: G1=3.85,G2=4.94 | S110: G1=3.85,G2=4.93 | T110: G1=3.84,G2=4.9 | U110: G1=3.82,G2=4.85 | V110: G1=3.75,G2=4.73 | W110: G1=3.56,G2=4.43 | X110: G1=3.34,G2=4.09 | Y110: G1=3.06,G2=3.68 | Z110: G1=2.64,G2=3.11 | AA110: G1=2.34,G2=2.71 | AB110: G1=2.08,G2=2.37 | AC110: G1=1.79,G2=1.98 | AD110: G1=1.62,G2=1.75 | AE110: G1=1.48,G2=1.56 | AF110: G1=1.34,G2=1.38 | AG110: G1=1.27,G2=1.28 | AH110: G1=1.21,G2=1.2 | AI110: G1=1.15,G2=1.12
A111: 16.43363371 | B111: 7.320351605 | C111: 2.513440437 | D111: 1.119610432 | E111: 0.4987297491 | F111: 0.1712387036 | G111: 0.07627817074 | H111: 0.03397806227 | I111: 0.01166635706 | J111: 0.005196771277 | K111: 1.325e-05 | M111: 0.004886084512 | N111: 1.325e-05 | O111: 2.65e-05 | P111: 5.3e-05 | Q111: 0.0001325 | R111: 0.000265 | S111: 0.00053 | T111: 0.001325 | U111: 0.00265 | V111: 0.0053 | W111: 0.01325 | X111: 0.0265 | Y111: 0.053 | Z111: 0.1325 | AA111: 0.265 | AB111: 0.53 | AC111: 1.325 | AD111: 2.65 | AE111: 5.3 | AF111: 13.25 | AG111: 26.5 | AH111: 53 | AI111: 132.5
A112: 18.68443193 | B112: 8.322968228 | C112: 2.857688541 | D112: 1.272955529 | E112: 0.5670372244 | F112: 0.1946920539 | G112: 0.08672545061 | H112: 0.03863179639 | I112: 0.01326421522 | J112: 0.005908536168 | K112: 2.65e-05 | M112: 4029.488879 | N112: 1.325e-05 | O112: 2.65e-05 | P112: 5.3e-05 | Q112: 0.0001325 | R112: 0.000265 | S112: 0.00053 | T112: 0.001325 | U112: 0.00265 | V112: 0.0053 | W112: 0.01325 | X112: 0.0265 | Y112: 0.053 | Z112: 0.1325 | AA112: 0.265 | AB112: 0.53 | AC112: 1.325 | AD112: 2.65 | AE112: 5.3 | AF112: 13.25 | AG112: 26.5 | AH112: 53 | AI112: 132.5
A113: 21.24350601 | B113: 9.462906135 | C113: 3.249085865 | D113: 1.447303216 | E113: 0.64470029 | F113: 0.2213576431 | G113: 0.09860362027 | H113: 0.04392291945 | I113: 0.01508092067 | J113: 0.006717786447 | K113: 5.3e-05
A114: 25.17206173 | B114: 11.21287876 | C114: 3.84993842 | D114: 1.714952602 | E114: 0.7639245372 | F114: 0.2622932512 | G114: 0.1168383606 | H114: 0.05204557286 | I114: 0.01786983118 | J114: 0.007960104846 | K114: 0.0001325
A115: 28.61706003 | B115: 12.74745105 | C115: 4.376833335 | D115: 1.949657604 | E115: 0.8684737301 | F115: 0.2981901839 | G115: 0.1328286263 | H115: 0.05916842645 | I115: 0.02031546073 | J115: 0.009049508963 | K115: 0.000265
A116: 32.48270821 | B116: 14.46940155 | C116: 4.968064502 | D116: 2.213021148 | E116: 0.9857888521 | F116: 0.3384702944 | G116: 0.1507713757 | H116: 0.06716101267 | I116: 0.02305971272 | J116: 0.01027193425 | K116: 0.00053
A117: 37.99257515 | B117: 16.92376825 | C117: 5.810770541 | D117: 2.588404013 | E117: 1.153002909 | F117: 0.3958831884 | G117: 0.1763459126 | H117: 0.07855317372 | I117: 0.02697120766 | J117: 0.01201430716 | K117: 0.001325
A118: 42.21234733 | B118: 18.80346306 | C118: 6.456163168 | D118: 2.875893745 | E118: 1.281065026 | F118: 0.4398532763 | G118: 0.19593236 | H118: 0.08727794419 | I118: 0.02996685487 | J118: 0.0133487163 | K118: 0.00265
A119: 46.18001691 | B119: 20.57085893 | C119: 7.062997988 | D119: 3.146207927 | E119: 1.401476304 | F119: 0.4811964513 | G119: 0.2143486508 | H119: 0.09548146912 | I119: 0.03278353259 | J119: 0.01460340358 | K119: 0.0053
A120: 50.76368063 | B120: 22.612649 | C120: 7.76404597 | D120: 3.458489301 | E120: 1.540581842 | F120: 0.5289582943 | G120: 0.2356241332 | H120: 0.1049586191 | I120: 0.03603750908 | J120: 0.01605288532 | K120: 0.01325
A121: 54.11307149 | B121: 24.10463301 | C121: 8.276318214 | D121: 3.686680644 | E121: 1.64222953 | F121: 0.563858996 | G121: 0.2511706284 | H121: 0.1118837954 | I121: 0.03841526621 | J121: 0.01711205571 | K121: 0.0265
A122: 58.20171411 | B122: 25.92591625 | C122: 8.901655244 | D122: 3.965236623 | E122: 1.766312112 | F122: 0.6064627119 | G122: 0.2701484263 | H122: 0.1203374434 | I122: 0.04131782358 | J122: 0.01840499803 | K122: 0.053
A123: 66.12816917 | B123: 29.45675057 | C123: 10.11396611 | D123: 4.50525972 | E123: 2.006865055 | F123: 0.6890564895 | G123: 0.3069397716 | H123: 0.1367261245 | I123: 0.04694487214 | J123: 0.02091156321 | K123: 0.1325
A124: 76.7115085 | B124: 34.17109229 | C124: 11.73263386 | D124: 5.226294235 | E124: 2.328049417 | F124: 0.79933504 | G124: 0.3560632813 | H124: 0.1586081604 | I124: 0.05445806233 | J124: 0.02425830896 | K124: 0.265
A125: 94.33201459 | B125: 42.02013544 | C125: 14.42760038 | D125: 6.42676534 | E125: 2.862798502 | F125: 0.9829409711 | G125: 0.4378504256 | H125: 0.1950401914 | I125: 0.0669669888 | J125: 0.02983040224 | K125: 0.53
A126: 136.6630951 | B126: 60.87648812 | C126: 20.90192318 | D126: 9.310748283 | E126: 4.147466855 | F126: 1.424031449 | G126: 0.6343338962 | H126: 0.2825636275 | I126: 0.09701813322 | J126: 0.04321666526 | K126: 1.325
A127: 196.0560626 | B127: 87.33304745 | C127: 29.98577456 | D127: 13.35714406 | E127: 5.949931259 | F127: 2.042907039 | G127: 0.9100116311 | H127: 0.4053640978 | I127: 0.1391816363 | J127: 0.0619983707 | K127: 2.65
A128: 301.0413193 | B128: 134.0986628 | C128: 46.04273396 | D128: 20.50970633 | E128: 9.136035541 | F128: 3.136854948 | G128: 1.397310026 | H128: 0.6224308556 | I128: 0.2137114398 | J128: 0.09519762389 | K128: 5.3
A129: 578.3730283 | B129: 257.6358948 | C129: 88.45920398 | D129: 39.40409572 | E129: 17.55252918 | F129: 6.02665541 | G129: 2.68456979 | H129: 1.195839892 | I129: 0.4105912534 | J129: 0.1828976107 | K129: 13.25
A130: 1000.428658 | B130: 445.6403045 | C130: 153.0104593 | D130: 68.15841104 | E130: 30.36112051 | F130: 10.42448124 | G130: 4.643578488 | H130: 2.068479061 | I130: 0.7102116395 | J130: 0.3163633196 | K130: 26.5
A131: 1785.134425 | B131: 795.1869855 | C131: 273.027203 | D131: 121.6197926 | E131: 54.17545866 | F131: 18.60112681 | G131: 8.285860014 | H131: 3.690931032 | I131: 1.267280017 | J131: 0.5645090713 | K131: 53
A132: 4029.488879 | B132: 1794.933239 | C132: 616.2897667 | D132: 274.5258816 | E132: 122.287378 | F132: 41.98733303 | G132: 18.70323059 | H132: 8.331342078 | I132: 2.8605637 | J132: 1.274236267 | K132: 132.5
A134: DIMENSIONED STANDARD STATE DIAGRAM SECOND GSD RESULTS
A135: S=0.0001 | B135: S=0.0002 | C135: S=0.0005 | D135: S=0.001 | E135: S=0.002 | F135: S=0.005 | G135: S=0.01 | H135: S=0.02 | I135: S=0.05 | J135: S=0.1 | K135: qT (kg/m-s)
A136: 15.4511559 | B136: 6.882707491 | C136: 2.363175467 | D136: 1.052674997 | E136: 0.4689134027 | F136: 0.1610012703 | G136: 0.07171791268 | H136: 0.03194669824 | I136: 0.01096888886 | J136: 0.004886084512 | K136: 9.400328153e-06
A137: 17.5673911 | B137: 7.825383104 | C137: 2.686842844 | D137: 1.196852423 | E137: 0.5331371446 | F137: 0.183052472 | G137: 0.08154060634 | H137: 0.03632221083 | I137: 0.01247121974 | J137: 0.005555296841 | K137: 1.880065631e-05
A138: 19.97347202 | B138: 8.897170307 | C138: 3.054840645 | D138: 1.360776808 | E138: 0.6061571568 | F138: 0.2081238704 | G138: 0.09270864467 | H138: 0.04129700635 | I138: 0.01417931423 | J138: 0.006316166435 | K138: 3.760131261e-05
A139: 23.66505545 | B139: 10.54158378 | C139: 3.619449499 | D139: 1.612281459 | E139: 0.7181897428 | F139: 0.2465902238 | G139: 0.1098434571 | H139: 0.04892969758 | I139: 0.01679999638 | J139: 0.007483547619 | K139: 9.400328153e-05
A140: 26.86290859 | B140: 11.96606541 | C140: 4.108544822 | D140: 1.830148657 | E140: 0.8152385465 | F140: 0.2799119002 | G140: 0.1246865766 | H140: 0.05554155561 | I140: 0.01907017577 | J140: 0.008494797572 | K140: 0.0001880065631
A141: 30.32456725 | B141: 13.50805905 | C141: 4.637987853 | D141: 2.065988717 | E141: 0.9202933496 | F141: 0.3159824341 | G141: 0.1407541727 | H141: 0.06269885603 | I141: 0.02152763263 | J141: 0.009589470157 | K141: 0.0003760131261
A142: 34.86915001 | B142: 15.53244053 | C142: 5.333058602 | D142: 2.375607536 | E142: 1.058212854 | F142: 0.3633370529 | G142: 0.1618482573 | H142: 0.0720952025 | I142: 0.02475386525 | J142: 0.01102659341 | K142: 0.0009400328153
A143: 37.93124122 | B143: 16.89644709 | C143: 5.801389829 | D143: 2.584225381 | E143: 1.15114154 | F143: 0.395244088 | G143: 0.1760612257 | H143: 0.07842636013 | I143: 0.02692766625 | J143: 0.01199491167 | K143: 0.001880065631
A144: 40.31617962 | B144: 17.95881637 | C144: 6.166153991 | D144: 2.746709343 | E144: 1.223519916 | F144: 0.4200951811 | G144: 0.1871311292 | H144: 0.08335744154 | I144: 0.02862075151 | J144: 0.01274909542 | K144: 0.003760131261
A145: 42.31339859 | B145: 18.84847628 | C145: 6.471618442 | D145: 2.882778287 | E145: 1.28413174 | F145: 0.4409062319 | G145: 0.1964013984 | H145: 0.08748687704 | I145: 0.0300385919 | J145: 0.01338067151 | K145: 0.009400328153
A146: 43.65835845 | B146: 19.44758779 | C146: 6.677323192 | D146: 2.974409336 | E146: 1.324948732 | F146: 0.4549207333 | G146: 0.2026441491 | H146: 0.09026770633 | I146: 0.03099338877 | J146: 0.01380598516 | K146: 0.01880065631
A147: 45.92926294 | B147: 20.45916074 | C147: 7.024646447 | D147: 3.129124258 | E147: 1.393866395 | F147: 0.4785835913 | G147: 0.213184754 | H147: 0.09496301203 | I147: 0.03260552051 | J147: 0.01452410821 | K147: 0.03760131261
A148: 51.95619499 | B148: 23.14385376 | C148: 7.946434957 | D148: 3.539734358 | E148: 1.576772401 | F148: 0.5413843113 | G148: 0.2411592945 | H148: 0.1074242532 | I148: 0.03688408376 | J148: 0.01642999147 | K148: 0.09400328153
A149: 61.0820388 | B149: 27.20895503 | C149: 9.34218621 | D149: 4.161470859 | E149: 1.853724527 | F149: 0.6364757372 | G149: 0.2835177092 | H149: 0.1262927819 | I149: 0.04336258719 | J149: 0.01931583667 | K149: 0.1880065631
A150: 76.3465691 | B150: 34.00853027 | C150: 11.67681824 | D150: 5.201431203 | E150: 2.316974195 | F150: 0.7955323661 | G150: 0.3543693826 | H150: 0.1578536144 | I150: 0.05419898917 | J150: 0.02414290499 | K150: 0.3760131261
A151: 113.7807721 | B151: 50.68357199 | C151: 17.40218861 | D151: 7.751793761 | E151: 3.453031563 | F151: 1.185597308 | G151: 0.5281235611 | H151: 0.2352523018 | I151: 0.08077380432 | J151: 0.03598063936 | K151: 0.9400328153
A152: 165.448972 | B152: 73.69913851 | C152: 25.30457618 | D152: 11.27190724 | E152: 5.021063857 | F152: 1.723980706 | G152: 0.7679461007 | H152: 0.3420810984 | I152: 0.1174534383 | J152: 0.05231955879 | K152: 1.880065631
A153: 259.5061538 | B153: 115.5968499 | C153: 39.69014229 | D153: 17.67994844 | E153: 7.875521702 | F153: 2.704057916 | G153: 1.204520866 | H153: 0.5365530475 | I153: 0.1842253212 | J153: 0.08206305127 | K153: 3.760131261
A154: 510.6769733 | B154: 227.4807304 | C154: 78.10543773 | D154: 34.79201718 | E154: 15.49808175 | F154: 5.321261527 | G154: 2.370352537 | H154: 1.055872018 | I154: 0.3625333276 | J154: 0.1614902384 | K154: 9.400328153
A155: 899.7580837 | B155: 400.7966617 | C155: 137.6134086 | D155: 61.29980465 | E155: 27.30595869 | F155: 9.375492386 | G155: 4.176307074 | H155: 1.860333309 | I155: 0.6387448606 | J155: 0.2845284888 | K155: 18.80065631
A156: 1644.017093 | B156: 732.3263603 | C156: 251.444027 | D156: 112.0055807 | E156: 49.89281412 | F156: 17.13068214 | G156: 7.63085138 | H156: 3.399157856 | I156: 1.167099788 | J156: 0.5198838525 | K156: 37.60131261
A157: 3792.775409 | B157: 1689.489375 | C157: 580.0856491 | D157: 258.3987806 | E157: 115.1035712 | F157: 39.52077521 | G157: 17.60450399 | H157: 7.841915018 | I157: 2.692519071 | J157: 1.199380895 | K157: 94.00328153
A163: DIMENSIONED ALTERNATIVE STATE DIAGRAM FIRST GSD RESULTS | M163: GAMMAS
A164: 0.0316227766 | B164: 0.1 | C164: 0.316227766 | D164: 1 | E164: 3.16227766 | F164: 10 | G164: 31.6227766 | H164: 100 | I164: 316.227766 | J164: 1000 | K164: qT (kg/m-s) | M164: S | N164: =N110 -> G1=3.85,G2=4.94 | O164: =O110 -> G1=3.85,G2=4.94 | P164: G1=3.85,G2=4.94 | Q164: G1=3.85,G2=4.94 | R164: G1=3.85,G2=4.94 | S164: G1=3.85,G2=4.93 | T164: G1=3.84,G2=4.9 | U164: G1=3.82,G2=4.85 | V164: G1=3.75,G2=4.73 | W164: G1=3.56,G2=4.43 | X164: G1=3.34,G2=4.09 | Y164: G1=3.06,G2=3.68 | Z164: G1=2.64,G2=3.11 | AA164: G1=2.34,G2=2.71 | AB164: G1=2.08,G2=2.37 | AC164: G1=1.79,G2=1.98 | AD164: G1=1.62,G2=1.75 | AE164: G1=1.48,G2=1.56 | AF164: G1=1.34,G2=1.38 | AG164: G1=1.27,G2=1.28 | AH164: G1=1.21,G2=1.2 | AI164: G1=1.15,G2=1.12
A165: 0.02127020422 | B165: 0.007928667966 | C165: 0.002955485292 | D165: 0.001101684842 | E165: 0.0004106633497 | F165: 0.0001530786124 | G165: 5.706148741e-05 | H165: 2.127020422e-05 | I165: 7.928667966e-06 | J165: 2.955485292e-06 | K165: 1.325e-05 | M165: 0.0001 | N165: =N111 -> 1.325e-05 | O165: 2.65e-05 | P165: 5.3e-05 | Q165: 0.0001325 | R165: 0.000265 | S165: 0.00053 | T165: 0.001325 | U165: 0.00265 | V165: 0.0053 | W165: 0.01325 | X165: 0.0265 | Y165: 0.053 | Z165: 0.1325 | AA165: 0.265 | AB165: 0.53 | AC165: 1.325 | AD165: 2.65 | AE165: 5.3 | AF165: 13.25 | AG165: 26.5 | AH165: 53 | AI165: 132.5
A166: 0.02374401722 | B166: 0.008850804949 | C166: 0.003299220495 | D166: 0.00122981536 | E166: 0.0004584252012 | F166: 0.0001708822901 | G166: 6.369797516e-05 | H166: 2.374401722e-05 | I166: 8.850804949e-06 | J166: 3.299220495e-06 | K166: 2.65e-05 | M166: 0.1 | N166: =N112 -> 1.325e-05 | O166: 2.65e-05 | P166: 5.3e-05 | Q166: 0.0001325 | R166: 0.000265 | S166: 0.00053 | T166: 0.001325 | U166: 0.00265 | V166: 0.0053 | W166: 0.01325 | X166: 0.0265 | Y166: 0.053 | Z166: 0.1325 | AA166: 0.265 | AB166: 0.53 | AC166: 1.325 | AD166: 2.65 | AE166: 5.3 | AF166: 13.25 | AG166: 26.5 | AH166: 53 | AI166: 132.5
A167: 0.02650554494 | B167: 0.009880190289 | C167: 0.003682933528 | D167: 0.001372847989 | E167: 0.0005117419543 | F167: 0.0001907566095 | G167: 7.110631397e-05 | H167: 2.650554494e-05 | I167: 9.880190289e-06 | J167: 3.682933528e-06 | K167: 5.3e-05
A168: 0.03065503514 | B168: 0.01142695165 | C168: 0.004259503321 | D168: 0.001587769783 | E168: 0.0005918560673 | F168: 0.000220619896 | G168: 8.223813388e-05 | H168: 3.065503514e-05 | I168: 1.142695165e-05 | J168: 4.259503321e-06 | K168: 0.0001325
A169: 0.03421763682 | B169: 0.01275494481 | C169: 0.004754525219 | D169: 0.001772293835 | E169: 0.000660639137 | F169: 0.0002462594298 | G169: 9.179551042e-05 | H169: 3.421763682e-05 | I169: 1.275494481e-05 | J169: 4.754525219e-06 | K169: 0.000265
A170: 0.03814311856 | B170: 0.01421820492 | C170: 0.005299969139 | D170: 0.001975613168 | E170: 0.0007364283238 | F170: 0.0002745105595 | G170: 0.0001023263838 | H170: 3.814311856e-05 | I170: 1.421820492e-05 | J170: 5.299969139e-06 | K170: 0.00053
A171: 0.04362563581 | B171: 0.01626186461 | C171: 0.00606176244 | D171: 0.002259578761 | E171: 0.0008422791598 | F171: 0.0003139674507 | G171: 0.0001170343098 | H171: 4.362563581e-05 | I171: 1.626186461e-05 | J171: 6.06176244e-06 | K171: 0.001325
A172: 0.04774722602 | B172: 0.01779822599 | C172: 0.006634455543 | D172: 0.002473055482 | E172: 0.0009218546084 | F172: 0.0003436299449 | G172: 0.0001280912825 | H172: 4.774722602e-05 | I172: 1.779822599e-05 | J172: 6.634455543e-06 | K172: 0.00265
A173: 0.05156906033 | B173: 0.01922285054 | C173: 0.007165497697 | D173: 0.002671006422 | E173: 0.0009956426765 | F173: 0.0003711351389 | G173: 0.0001383441013 | H173: 5.156906033e-05 | I173: 1.922285054e-05 | J173: 7.165497697e-06 | K173: 0.0053
A174: 0.05592641043 | B174: 0.02084709363 | C174: 0.007770949531 | D174: 0.002896694267 | E174: 0.001079769936 | F174: 0.0004024943633 | G174: 0.0001500335461 | H174: 5.592641043e-05 | I174: 2.084709363e-05 | J174: 7.770949531e-06 | K174: 0.01325
A175: 0.05907474739 | B175: 0.02202066574 | C175: 0.008208409533 | D175: 0.003059761583 | E175: 0.001140554806 | F175: 0.0004251524934 | G175: 0.0001584795764 | H175: 5.907474739e-05 | I175: 2.202066574e-05 | J175: 8.208409533e-06 | K175: 0.0265
A176: 0.06288055683 | B176: 0.02343931688 | C176: 0.00873722504 | D176: 0.003256882519 | E176: 0.001214033483 | F176: 0.0004525423586 | G176: 0.0001686894054 | H176: 6.288055683e-05 | I176: 2.343931688e-05 | J176: 8.73722504e-06 | K176: 0.053
A177: 0.0701528906 | B177: 0.02615014745 | C177: 0.009747712541 | D177: 0.003633551205 | E177: 0.001354440266 | F177: 0.0005048803028 | G177: 0.0001881988646 | H177: 7.01528906e-05 | I177: 2.615014745e-05 | J177: 9.747712541e-06 | K177: 0.1325
A178: 0.07967260546 | B178: 0.02969871038 | C178: 0.01107047263 | D178: 0.004126622426 | E178: 0.001538237184 | F178: 0.0005733923268 | G178: 0.0002137373637 | H178: 7.967260546e-05 | I178: 2.969871038e-05 | J178: 1.107047263e-05 | K178: 0.265
A179: 0.09512161971 | B179: 0.03545747523 | C179: 0.0132171062 | D179: 0.004926800207 | E179: 0.001836510951 | F179: 0.0006845766689 | G179: 0.0002551823692 | H179: 9.512161971e-05 | I179: 3.545747523e-05 | J179: 1.32171062e-05 | K179: 0.53
A180: 0.1306990714 | B180: 0.04871930378 | C180: 0.01816057708 | D180: 0.006769525308 | E180: 0.002523404003 | F180: 0.0009406224915 | G180: 0.0003506258493 | H180: 0.0001306990714 | I180: 4.871930378e-05 | J180: 1.816057708e-05 | K180: 1.325
A181: 0.1780785725 | B181: 0.06638045685 | C181: 0.02474393741 | D181: 0.009223534571 | E181: 0.003438158955 | F181: 0.001281605973 | G181: 0.0004777306376 | H181: 0.0001780785725 | I181: 6.638045685e-05 | J181: 2.474393741e-05 | K181: 2.65
A182: 0.2571881475 | B182: 0.09586929235 | C182: 0.03573617722 | D182: 0.01332099498 | E182: 0.004965525723 | F182: 0.00185094625 | G182: 0.0006899575619 | H182: 0.0002571881475 | I182: 9.586929235e-05 | J182: 3.573617722e-05 | K182: 5.3
A183: 0.4501126 | B183: 0.1677836901 | C183: 0.06254294296 | D183: 0.02331346814 | E183: 0.008690313745 | F183: 0.003239395894 | G183: 0.001207515179 | H183: 0.0004501126 | I183: 0.0001677836901 | J183: 6.254294296e-05 | K183: 13.25
A184: 0.7199500927 | B184: 0.2683681444 | C184: 0.100036741 | D184: 0.03728963275 | E184: 0.01390006009 | F184: 0.00518137767 | G184: 0.001931407086 | H184: 0.0007199500927 | I184: 0.0002683681444 | J184: 0.000100036741 | K184: 26.5
A185: 1.182662409 | B185: 0.4408484969 | C185: 0.1643304089 | D185: 0.06125570002 | E185: 0.02283363627 | F185: 0.008511451918 | G185: 0.003172723472 | H185: 0.001182662409 | I185: 0.0004408484969 | J185: 0.0001643304089 | K185: 53
A186: 2.376449219 | B186: 0.8858437184 | C186: 0.3302065482 | D186: 0.1230875855 | E186: 0.04588205109 | F186: 0.01710296455 | G186: 0.006375290327 | H186: 0.002376449219 | I186: 0.0008858437184 | J186: 0.0003302065482 | K186: 132.5
A188: DIMENSIONED ALTERNATIVE STATE DIAGRAM SECOND GSD RESULTS
A189: 0.0316227766 | B189: 0.1 | C189: 0.316227766 | D189: 1 | E189: 3.16227766 | F189: 10 | G189: 31.6227766 | H189: 100 | I189: 316.227766 | J189: 1000 | K189: qT (kg/m-s)
A190: 0.02017547147 | B190: 0.007520596077 | C190: 0.002803372671 | D190: 0.001044983436 | E190: 0.0003895273695 | F190: 0.0001451999776 | G190: 5.412465249e-05 | H190: 2.017547147e-05 | I190: 7.520596077e-06 | J190: 2.803372671e-06 | K190: 9.400328153e-06
A191: 0.02252196252 | B191: 0.008395272605 | C191: 0.003129416544 | D191: 0.001166519346 | E191: 0.0004348310188 | F191: 0.0001620873375 | G191: 6.041957415e-05 | H191: 2.252196252e-05 | I191: 8.395272605e-06 | J191: 3.129416544e-06 | K191: 1.880065631e-05
A192: 0.02514136021 | B192: 0.009371677643 | C192: 0.003493380673 | D192: 0.001302190386 | E192: 0.0004854036705 | F192: 0.0001809387674 | G192: 6.744662132e-05 | H192: 2.514136021e-05 | I192: 9.371677643e-06 | J192: 3.493380673e-06 | K192: 3.760131261e-05
A193: 0.02907506786 | B193: 0.01083800404 | C193: 0.004039967579 | D193: 0.001505935778 | E193: 0.0005613516748 | F193: 0.0002092490978 | G193: 7.799956229e-05 | H193: 2.907506786e-05 | I193: 1.083800404e-05 | J193: 4.039967579e-06 | K193: 9.400328153e-05
A194: 0.03241175898 | B194: 0.01208178693 | C194: 0.004503599307 | D194: 0.00167875885 | E194: 0.0006257730946 | F194: 0.0002332627858 | G194: 8.695088954e-05 | H194: 3.241175898e-05 | I194: 1.208178693e-05 | J194: 4.503599307e-06 | K194: 0.0001880065631
A195: 0.03596035356 | B195: 0.01340455881 | C195: 0.004996674925 | D195: 0.001862557407 | E195: 0.0006942857296 | F195: 0.0002588015126 | G195: 9.647068931e-05 | H195: 3.596035356e-05 | I195: 1.340455881e-05 | J195: 4.996674925e-06 | K195: 0.0003760131261
A196: 0.04053282567 | B196: 0.01510899064 | C196: 0.005632017864 | D196: 0.002099387442 | E196: 0.0007825663447 | F196: 0.0002917089392 | G196: 0.000108737241 | H196: 4.053282567e-05 | I196: 1.510899064e-05 | J196: 5.632017864e-06 | K196: 0.0009400328153
A197: 0.0435652622 | B197: 0.01623935978 | C197: 0.006053373554 | D197: 0.002256451725 | E197: 0.0008411135279 | F197: 0.0003135329505 | G197: 0.0001168723457 | H197: 4.35652622e-05 | I197: 1.623935978e-05 | J197: 6.053373554e-06 | K197: 0.001880065631
A198: 0.04590282998 | B198: 0.01711071008 | C198: 0.006378177543 | D198: 0.002377525456 | E198: 0.0008862448959 | F198: 0.0003303560908 | G198: 0.000123143329 | H198: 4.590282998e-05 | I198: 1.711071008e-05 | J198: 6.378177543e-06 | K198: 0.003760131261
A199: 0.04784518164 | B199: 0.01783473986 | C199: 0.006648066432 | D199: 0.002478129069 | E199: 0.0009237458354 | F199: 0.0003443349175 | G199: 0.0001283540676 | H199: 4.784518164e-05 | I199: 1.783473986e-05 | J199: 6.648066432e-06 | K199: 0.009400328153
A200: 0.04914579274 | B200: 0.01831955484 | C200: 0.006828785758 | D200: 0.002545493891 | E200: 0.0009488567043 | F200: 0.0003536952292 | G200: 0.0001318432115 | H200: 4.914579274e-05 | I200: 1.831955484e-05 | J200: 6.828785758e-06 | K200: 0.01880065631
A201: 0.05132895328 | B201: 0.01913334839 | C201: 0.007132134931 | D201: 0.002658570138 | E201: 0.0009910069351 | F201: 0.0003694071228 | G201: 0.0001376999671 | H201: 5.132895328e-05 | I201: 1.913334839e-05 | J201: 7.132134931e-06 | K201: 0.03760131261
A202: 0.05705064718 | B202: 0.02126616342 | C202: 0.007927161721 | D202: 0.002954923825 | E202: 0.00110147555 | F202: 0.0004105853341 | G202: 0.0001530495313 | H202: 5.705064718e-05 | I202: 2.126616342e-05 | J202: 7.927161721e-06 | K202: 0.09400328153
A203: 0.06553862215 | B203: 0.02443013563 | C203: 0.009106562018 | D203: 0.003394556339 | E203: 0.001265352689 | F203: 0.0004716720739 | G203: 0.0001758201861 | H203: 6.553862215e-05 | I203: 2.443013563e-05 | J203: 9.106562018e-06 | K203: 0.1880065631
A204: 0.07934761525 | B204: 0.02957756723 | C204: 0.01102531539 | D204: 0.004109789641 | E204: 0.001531962606 | F204: 0.0005710534188 | G204: 0.0002128655138 | H204: 7.934761525e-05 | I204: 2.957756723e-05 | J204: 1.102531539e-05 | K204: 0.3760131261
A205: 0.1117015082 | B205: 0.04163778404 | C205: 0.01552087423 | D205: 0.005785551331 | E205: 0.002156618481 | F205: 0.0008038997507 | G205: 0.0002996611663 | H205: 0.0001117015082 | I205: 4.163778404e-05 | J205: 1.552087423e-05 | K205: 0.9400328153
A206: 0.1539665393 | B206: 0.0573924705 | C206: 0.02139358126 | D206: 0.007974657917 | E206: 0.002972628477 | F206: 0.001108075124 | G206: 0.0004130453876 | H206: 0.0001539665393 | I206: 5.73924705e-05 | J206: 2.139358126e-05 | K206: 1.880065631
A207: 0.2264559361 | B207: 0.08441357253 | C207: 0.03146595029 | D207: 0.01172922787 | E207: 0.004372179615 | F207: 0.001629770928 | G207: 0.0006075123876 | H207: 0.0002264559361 | I207: 8.441357253e-05 | J207: 3.146595029e-05 | K207: 3.760131261
A208: 0.4045596101 | B208: 0.1508033862 | C208: 0.05621337554 | D208: 0.02095406257 | E208: 0.007810823204 | F208: 0.002911557552 | G208: 0.001085310365 | H208: 0.0004045596101 | I208: 0.0001508033862 | J208: 5.621337554e-05 | K208: 9.400328153
A209: 0.6573884623 | B209: 0.2450477104 | C209: 0.09134383064 | D209: 0.03404926895 | E209: 0.01269218411 | F209: 0.004731130579 | G209: 0.001763573264 | H209: 0.0006573884623 | I209: 0.0002450477104 | J209: 9.134383064e-05 | K209: 18.80065631
A210: 1.102060469 | B210: 0.4108033684 | C210: 0.1531308056 | D210: 0.05708094294 | E210: 0.02127745645 | F210: 0.007931371303 | G210: 0.002956492986 | H210: 0.001102060469 | I210: 0.0004108033684 | J210: 0.0001531308056 | K210: 37.60131261
A211: 2.256273916 | B211: 0.8410472481 | C211: 0.3135082441 | D211: 0.1168631362 | E211: 0.04356182926 | F211: 0.01623808012 | G211: 0.006052896548 | H211: 0.002256273916 | I211: 0.0008410472481 | J211: 0.0003135082441 | K211: 94.00328153

Sheet qt chart (hidden)
B5: 0.01 | C5: 0.1
A6: 1 | B6: =B$5*SQRT(1.65*9.81*($A6/1000)^3)*2650 -> 0.003371493679 | C6: 0.03371493679
A7: =2*A6 -> 2 | B7: 0.009536024172 | C7: 0.09536024172
A8: =2*A7 -> 4 | B8: 0.02697194943 | C8: 0.2697194943
A9: =2*A8 -> 8 | B9: 0.07628819337 | C9: 0.7628819337
A10: =2*A9 -> 16 | B10: 0.2157755954 | C10: 2.157755954
A11: =2*A10 -> 32 | B11: 0.610305547 | C11: 6.10305547
A12: 100 | B12: 3.371493679 | C12: 33.71493679

Sheet SBTMzt (hidden)
A1: SBTMzt WORKSHEET
A3: RULES, CONVENTIONS, AND UNITS
A4: 1. Cells for input data are highlighted in GREEN, cells for output data are highlighted in ORANGE
A5: 2. Grain-diameters must be in millimeters (mm)
A6: 3. Cumulative percentiles, not fractions, are used
A7: 4. Cumulative grain-size distribution percentiles must span from 0 to 100 %
A8: 5. The 0 and 100 % must be EXACTLY 0 and 100
A9: INSTRUCTIONS
A10: 1. In table below, enter grain size and cumulative % in order of decreasing grain size
A11: 2. Check input for errors, press Enter, and then click once on the Run SBTMzt button
A13: D (mm) | B13: Surface CDF GSD (% Finer) | C13: Transport CDF GSD (% Finer) | E13: Statistic | F13: Surface GSD | G13: Bedload GSD | H13: Units
A14: 64 | B14: 100 | C14: 100 | E14: Dmin | F14: 0.21 | G14: 0.21 | H14: mm
A15: 45.25 | B15: 96.22 | C15: 99.99999713 | E15: Dmax | F15: 64 | G15: 64 | H15: mm
A16: 32 | B16: 90.93 | C16: 99.99997413 | E16: D50 | F16: 5.324192442 | G16: 0.4070039725 | H16: mm
A17: 22.63 | B17: 81.05 | C17: 99.99971496 | E17: Dg | F17: 4.119784742 | G17: 0.4978880089 | H17: mm
A18: 16 | B18: 70.88 | C18: 99.99773195 | E18: sg | F18: 2.416297581 | G18: 1.025032273 | H18: f/y-units
A19: 11.31 | B19: 64.38 | C19: 99.98526572 | E19: Fs | F19: 34.37 | G19: 93.02071383 | H19: %
A20: 8 | B20: 58.44 | C20: 99.88567066
A21: 5.66 | B21: 51.51 | C21: 99.31339599
A22: 4 | B22: 42.94 | C22: 97.36123232
A23: 2.83 | B23: 36.99 | C23: 94.78683966
A24: 2 | B24: 34.37 | C24: 93.02071383
A25: 1.41 | B25: 31.5 | C25: 90.28122944
A26: 1 | B26: 28.17 | C26: 85.98521261
A27: 0.5 | B27: 17.77 | C27: 65.54936969
A28: 0.21 | B28: 0 | C28: 0

Sheet SBTMsa (hidden)
A1: SBTMsa WORKSHEET
A3: RULES, CONVENTIONS, AND UNITS
A4: 1. Cells for input data are highlighted in GREEN, cells for output data are highlighted in ORANGE
A5: 2. Grain-diameters must be in millimeters (mm)
A6: 3. Cumulative percentiles, not fractions, are used
A7: 4. Cumulative grain-size distribution percentiles must span from 0 to 100 %
A8: 5. The 0 and 100 % must be EXACTLY 0 and 100
A9: INSTRUCTIONS
A10: 1. In table below, enter grain size and cumulative % in order of decreasing grain size
A11: 2. Check input for errors, press Enter, and then click once on the Run SBTMsa button
A13: D (mm) | B13: Surface CDF GSD (% Finer) | C13: Transport CDF GSD (% Finer) | E13: Statistic | F13: Surface GSD | G13: Bedload GSD | H13: Units
A14: 64 | B14: 100 | C14: 100 | E14: Dmin | F14: 0.21 | G14: 0.21 | H14: mm
A15: 45.25 | B15: 58.38247893 | C15: 96.22 | E15: Dmax | F15: 64 | G15: 64 | H15: mm
A16: 32 | B16: 40.76605659 | C16: 90.93 | E16: D50 | F16: 38.37254667 | G16: 5.324192442 | H16: mm
A17: 22.63 | B17: 25.17484336 | C17: 81.05 | E17: Dg | F17: 29.21992387 | G17: 4.119784742 | H17: mm
A18: 16 | B18: 15.41449989 | C18: 70.88 | E18: sg | F18: 1.21176544 | G18: 2.416297581 | H18: f/y-units
A19: 11.31 | B19: 11.11553485 | C19: 64.38 | E19: Fs | F19: 1.72372 | G19: 34.37 | H19: %
A20: 8 | B20: 8.242638983 | C20: 58.44
A21: 5.66 | B21: 5.727206989 | C21: 51.51 | E21: Parameter | F21: Value | G21: Units
A22: 4 | B22: 3.372889317 | C22: 42.94 | E22: Maximum allowed iterations | F22: 200 | G22: #
A23: 2.83 | B23: 2.135106075 | C23: 36.99 | E23: Number of iterations | F23: 28 | G23: #
A24: 2 | B24: 1.72372 | C24: 34.37 | E24: Maximum absolute tolerance | F24: 5e-05 | G24: %
A25: 1.41 | B25: 1.385707418 | C25: 31.5 | E25: Relative difference in surface Dg at convergence | F25: 4.62509515e-05 | G25: %
A26: 1 | B26: 1.092607252 | C26: 28.17 | E26: Maximum absolute error from any grain size fraction percentile at convergence | F26: 4.15419646e-05 | G26: %
A27: 0.5 | B27: 0.505640687 | C27: 17.77
A28: 0.21 | B28: 0 | C28: 0 | E28: Issue | F28: Warnings
E29: Singular derivative | F29: No problems
E30: Convergence | F30: Convergence attained, have a nice day
